Cogmind - Beta 14 @@@ ROGUE MODE // 2024.08.31 @ 18:26:59 // Winter2019/RPGLIKE Player: 0Z-4NL Result: Destroyed by G-67 Veteran with Plasma Rifle Performance ------------- Evolutions (7) 3500 Regions Visited (27) 5400 Robots Destroyed (700) 3500 Value Destroyed (34198) 34198 Prototype IDs (79) 1580 Alien Tech Used (10) 2000 Bonus (28554) 28554 TOTAL SCORE: 78732 Bonus ------- Triggered Max Security 1000 High Alert Combat Kills 10984 Follower Combat Kills 1177 Entered Garrisons 1600 Used RIF Installer 5000 Aligned with FarCom 300 Used Core Reset Matrix 3000 Scanned by Researcher 500 Pursued by Intercept 500 Met Sigix 2000 Integrated Exoskeleton 5000 Friendly Fire -2507 Cogmind --------- Core Integrity 0/1550 Matter 370/475 Energy 300/300 System Corruption 2% Temperature Cool (0) Movement Walking (30) Location -3/Section 7 Parts ------- > --- POWER (2) -------- Matter Drive > --- PROPULSION (3) --- Sigix Exoskeleton > --- UTILITY (4) ------ Advanced Heat Sink Small Battery Experimental Core Analyzer Improved Armor Integrity Analyzer > --- WEAPON (2) ------- Sigix Sheargun Sigix Sheargun > --- INVENTORY (7) ---- Protomatter-65 Protomatter-40 Subatomic Replicator Core Cannon Helical Railgun Advanced Remote Datajack Peak State ------------ > --- POWER ------------ Matter Drive > --- PROPULSION ------- Sigix Exoskeleton > --- UTILITY ---------- Advanced Visual Processing Unit Experimental Core Analyzer Experimental Core Analyzer Improved Armor Integrity Analyzer > --- WEAPON ----------- Sigix Sheargun Sigix Sheargun > --- INVENTORY -------- Transdimensional Reconstructor Transdimensional Reconstructor Subatomic Replicator Core Cannon Helical Railgun Advanced Remote Datajack [Rating: 250] Favorites ----------- Power Micro Fission Core Engine Light Angular Momentum Engine Power Core Micro Fission Core Reactor Micro Antimatter Reactor Propulsion Improved Antigrav System Treads Light Treads Leg Sigix Exoskeleton Wheel Wheel Hover Unit Improved Antigrav System Flight Unit Improved Surge Thruster Utility Active Sensor Suite Device Active Sensor Suite Storage Small Battery Processor Experimental Core Analyzer Hackware Relay Coupler [C] Protection Centrium Medium Armor Plating Weapon Helical Railgun Energy Gun Force Rifle Energy Cannon Guided Plasma Cannon Ballistic Gun Helical Railgun Ballistic Cannon Heavy Assault Cannon Launcher Mini Grenade Launcher Special Weapon Advanced Remote Datajack Impact Weapon Power Maul Piercing Weapon Plasma Lance Special Melee Weapon Improved Datajack Build | -11 -10 -10 -10 -9 -8 -8 -8 -8 -7 -7 -7 -7 -6 -6 -6 -6 -6 -6 -5 -5 -5 -5 -4 -4 -3 -3 -3 ------- Run | Yrd Mat Min Exi Min Mat Gar Mat Gar Fac Gar Fac Gar Fac Ext Cet Arc Hub Gar Fac Gar Fac Gar Fac Gar Res Qua Sec Slots Evolved 20 | 3 . 1 . . 4 1 . 1 2 . . 1 1 . . 1 . . . 1 . 1 . . . 1 2 Power 2 | . . . . . . . . 1 . . . . . . . . . . . . . . . . . . 1 Propulsion 4 | 1 . . . . 1 1 . . 1 . . . . . . . . . . . . . . . . . . Utility 8 | . . 1 . . 2 . . . 1 . . . 1 . . . . . . 1 . 1 . . . . 1 Weapon 6 | 2 . . . . 1 . . . . . . 1 . . . 1 . . . . . . . . . 1 . Parts Attached 569 | 5 6 21 3 6 24 3 3 1 50 22 1 17 33 26 7 16 2 27 39 23 36 24 33 12 62 36 31 Power 26 | . 1 2 . 1 1 1 . 1 2 1 . 1 4 2 . . . . 3 1 . 2 . . 1 . 2 Engine 7 | . 1 2 . 1 1 1 . . . . . . . 1 . . . . . . . . . . . . . Core 12 | . . . . . . . . 1 2 1 . 1 4 1 . . . . 2 . . . . . . . . Reactor 7 | . . . . . . . . . . . . . . . . . . . 1 1 . 2 . . 1 . 2 Propulsion 38 | 2 1 2 . 1 8 1 . . 5 1 . 1 1 1 . . . . 2 5 2 . . . 3 2 . Treads 3 | 1 . 1 . . 1 . . . . . . . . . . . . . . . . . . . . . . Leg . | . . . . . . . . . . . . . . . . . . . . . . . . . . . . Wheel 5 | 1 1 1 . 1 1 . . . . . . . . . . . . . . . . . . . . . . Hover 29 | . . . . . 6 1 . . 5 1 . 1 1 1 . . . . 2 5 1 . . . 3 2 . Flight 1 | . . . . . . . . . . . . . . . . . . . . . 1 . . . . . . Utility 349 | 1 1 5 1 1 7 1 1 . 31 13 . 8 19 23 5 11 1 16 17 11 32 13 24 11 39 28 29 Device 282 | 1 1 1 . 1 3 1 1 . 23 12 . 8 19 22 4 7 1 7 15 6 32 10 21 5 38 22 21 Storage 1 | . . . . . . . . . . . . . . . . . . . . . . . . . . . 1 Processor 17 | . . . 1 . 2 . . . 2 . . . . . . . . 3 . . . 1 2 1 . . 5 Hackware 8 | . . . . . . . . . . . . . . . . . . . . 2 . 1 . 3 . 1 1 Protection 41 | . . 4 . . 2 . . . 6 1 . . . 1 1 4 . 6 2 3 . 1 1 2 1 5 1 Artifact . | . . . . . . . . . . . . . . . . . . . . . . . . . . . . Weapon 156 | 2 3 12 2 3 8 . 2 . 12 7 1 7 9 . 2 5 1 11 17 6 2 9 9 1 19 6 . Energy Gun 34 | 1 . . . 1 2 . . . 2 . . . 2 . 2 4 . . 5 . 2 . 4 . 6 3 . Energy Cannon 26 | . . . 1 . . . 1 . 3 3 1 3 5 . . . 1 . 7 . . . . . . 1 . Ballistic Gun 38 | 1 3 7 . 1 . . . . . . . . . . . 1 . 7 3 . . 4 1 . 8 2 . Ballistic Cannon 2 | . . . . . 1 . . . . . . 1 . . . . . . . . . . . . . . . Launcher 28 | . . 5 1 1 3 . 1 . 3 4 . 3 2 . . . . 4 1 . . . . . . . . Special Weapon 22 | . . . . . . . . . 1 . . . . . . . . . 1 6 . 4 4 1 5 . . Impact Weapon 3 | . . . . . . . . . 3 . . . . . . . . . . . . . . . . . . Slashing Weapon . | . . . . . . . . . . . . . . . . . . . . . . . . . . . . Piercing Weapon 1 | . . . . . . . . . . . . . . . . . . . . . . 1 . . . . . Special Melee Weapon 2 | . . . . . 2 . . . . . . . . . . . . . . . . . . . . . . Unidentified Prototypes 33 | . . . . . . . . . 1 1 . . 4 . 2 . . 6 1 . 1 2 2 2 4 4 3 Parts Lost 2 | . . . . . . . . . . . . . . . . . . . . . . . . . 2 . . Power . | . . . . . . . . . . . . . . . . . . . . . . . . . . . . Propulsion . | . . . . . . . . . . . . . . . . . . . . . . . . . . . . Utility 2 | . . . . . . . . . . . . . . . . . . . . . . . . . 2 . . Weapon . | . . . . . . . . . . . . . . . . . . . . . . . . . . . . Highest Loss Streak 2 | . . . . . . . . . . . . . . . . . . . . . . . . . 2 . . To Critical Strikes . | . . . . . . . . . . . . . . . . . . . . . . . . . . . . Average Slot Usage (%) 90 | . 100 98 100 99 99 91 92 92 92 88 81 81 82 83 83 84 89 88 88 88 89 89 89 90 96 94 84 Engine 2 | . 14 11 12 12 8 7 7 7 4 . . . . . . . . . . . . . . . . . . Core 5 | . . . . . . . . 4 7 12 12 11 11 10 11 10 10 10 10 6 5 4 4 4 1 . . Reactor 2 | . . . . . . . . . . . . . . . . . . . . 3 5 4 4 4 7 9 9 Treads 1 | . 14 11 12 10 . . . . . . . . . . . . . . . . . . . . . . . Wheel 1 | . 14 11 12 13 8 . . . . . . . . . . . . . . . . . . . . . . Hover 21 | . . . . . 13 26 30 28 30 31 31 30 28 27 27 26 26 26 26 25 24 24 23 23 20 18 10 Device 13 | . 14 13 12 12 16 24 23 21 15 11 12 11 13 15 13 11 10 9 11 10 11 11 9 18 10 9 8 Processor 6 | . . . 2 12 10 7 7 7 12 10 6 5 5 5 5 5 5 5 5 5 5 8 8 4 9 9 13 Hackware 2 | . . . . . . . . . . . . . . . . . . . . . 3 . 3 . 12 12 8 Protection 3 | . . 10 9 . 5 . . . 2 4 . . . . 2 3 5 4 3 4 5 4 4 4 3 3 2 Energy Gun 7 | . 3 . . 3 15 . . . 6 6 6 5 8 11 11 16 26 22 13 5 5 4 2 4 2 3 9 Energy Cannon 4 | . . . 2 12 8 7 7 7 7 11 10 11 10 11 11 7 2 . 1 . . . . . . . . Ballistic Gun 12 | . 38 32 34 20 . . . . . . . . . . . . 2 8 15 20 20 22 22 22 20 20 13 Launcher 1 | . . 4 . . 3 7 7 7 2 . 1 . . . . . . . . . . . . . . . . Special Weapon 1 | . . . . . . . . . . . . . . . . . . . . 4 5 1 1 . 3 4 2 Peak Build Rating 250 | 7 7 12 22 25 45 53 53 48 76 98 95 105 117 119 120 124 124 136 147 158 161 165 173 174 172 184 250 Average Rating 111 | 5 6 11 13 22 40 47 48 46 71 81 95 97 108 116 117 120 122 131 138 147 154 161 164 171 164 176 203 On Entrance 95 | 3 7 7 12 21 24 43 53 45 48 75 95 95 105 117 119 116 122 123 136 145 153 159 163 173 160 170 180 Naked Turns . | . . . . . . . . . . . . . . . . . . . . . . . . . . . . Heaviest Build 71 | 10 10 14 20 22 36 35 40 41 46 48 43 51 57 58 58 61 59 59 63 60 65 68 64 64 68 71 71 Greatest Support 80 | 10 10 20 10 20 34 43 43 43 53 54 54 56 56 59 59 59 59 59 64 68 68 68 68 68 70 70 80 Greatest Overweight (x) 3 | 2 . 3 1 2 3 . . . 1 . . . 1 1 . 1 . . 1 . . . . . . 1 1 Average Overweight (x) . | . . . 1 1 . . . . . . . . . . . . . . . . . . . . . . . Largest Inventory Capacity 7 | 1 2 2 4 4 4 4 4 4 4 5 5 5 5 5 5 5 5 5 5 5 5 7 7 7 7 7 7 Average Capacity 4 | 1 1 2 2 4 4 4 4 4 4 4 5 5 5 5 5 5 5 5 5 5 5 5 7 7 7 7 7 Most Carried 7 | 1 2 2 4 4 4 4 4 4 4 5 5 5 5 5 5 5 5 5 5 5 5 7 7 7 7 7 7 Average Carried 4 | . 1 2 2 3 3 4 3 4 3 4 5 4 4 4 5 4 5 5 4 4 4 4 6 6 6 6 6 Final Capacity 7 | 1 2 2 4 4 4 4 4 4 4 5 5 5 5 5 5 5 5 5 5 5 5 7 7 7 7 7 7 Final Carried 7 | 1 2 2 4 4 4 4 4 4 4 5 5 5 5 5 5 5 5 5 5 5 5 7 7 7 7 7 7 Class Distribution -------------------- 35% | Scavenger-Scout 30% | Hacker-Scout 8% | Scavenger-Skirmisher 6% | Botlord-Executioner 6% | Botlord-Scout 3% | Gunner Dominant Class ---------------- Gunner | -10/Materials Scavenger-Skirmisher | -10/Mines Scavenger-Skirmisher | -10/Exiles Scavenger-Skirmisher | -9/Mines Scavenger-Assassin | -8/Materials Scavenger-Scout | -8/Garrison Scavenger-Scout | -8/Materials Hacker-Scout | -8/Garrison Hacker-Scout | -7/Factory Hacker-Scout | -7/Garrison Hacker-Scout | -7/Factory Hacker-Scout | -7/Garrison Hacker-Scout | -6/Factory Hacker-Scout | -6/Extension Hacker-Scout | -6/Cetus Hacker-Scout | -6/Archives Hacker-Scout | -6/Hub_04(d) Scavenger-Scout | -6/Garrison Scavenger-Scout | -5/Factory Scavenger-Scout | -5/Garrison Scavenger-Scout | -5/Factory Scavenger-Scout | -5/Garrison Scavenger-Scout | -4/Factory Scavenger-Scout | -4/Garrison Botlord-Scout | -3/Research Botlord-Scout | -3/Quarantine Botlord-Executioner | -3/Section 7 Resources | -11 -10 -10 -10 -9 -8 -8 -8 -8 -7 -7 -7 -7 -6 -6 -6 -6 -6 -6 -5 -5 -5 -5 -4 -4 -3 -3 -3 ----------- Run | Yrd Mat Min Exi Min Mat Gar Mat Gar Fac Gar Fac Gar Fac Ext Cet Arc Hub Gar Fac Gar Fac Gar Fac Gar Res Qua Sec Matter Collected 19992 | 254 182 459 . 90 284 356 805 134 607 110 184 349 485 260 80 170 10 874 1020 1594 1763 2178 1119 1287 2792 1255 1291 Remotely 67 | 20 47 . . . . . . . . . . . . . . . . . . . . . . . . . . Salvage Created 31094 | 72 370 392 . 165 1446 307 440 350 1104 962 150 1266 1257 1260 206 412 133 1838 1244 2077 2258 2562 1563 2069 3047 1090 3054 Parts 1852 | 5 36 37 . 5 69 20 36 18 83 53 2 77 52 80 14 33 13 109 82 119 141 145 83 95 184 62 199 Haulers Intercepted 5 | . . . . . 5 . . . . . . . . . . . . . . . . . . . . . . Recyclers Shooed 12 | . 2 1 . 1 2 . . . . . 1 . 1 1 . . . . . . 1 . 2 . . . . Parts Field Recycled . | . . . . . . . . . . . . . . . . . . . . . . . . . . . . Retrieved Matter . | . . . . . . . . . . . . . . . . . . . . . . . . . . . . Parts Self-Destructed . | . . . . . . . . . . . . . . . . . . . . . . . . . . . . Prevented . | . . . . . . . . . . . . . . . . . . . . . . . . . . . . Kills | -11 -10 -10 -10 -9 -8 -8 -8 -8 -7 -7 -7 -7 -6 -6 -6 -6 -6 -6 -5 -5 -5 -5 -4 -4 -3 -3 -3 ------- Run | Yrd Mat Min Exi Min Mat Gar Mat Gar Fac Gar Fac Gar Fac Ext Cet Arc Hub Gar Fac Gar Fac Gar Fac Gar Res Qua Sec Combat Hostiles Destroyed 585 | . 14 18 . 4 21 14 21 10 15 30 2 38 20 24 5 4 4 40 16 45 40 52 17 33 36 14 48 Guns 432 | . 14 10 . . 9 . . . 6 9 . 13 11 15 1 1 4 38 16 45 40 52 17 33 36 14 48 Cannons 110 | . . . . 4 11 12 15 4 7 13 . 24 7 8 2 3 . . . . . . . . . . . AOE 38 | . . 8 . . 1 2 6 6 2 8 1 1 1 . . . . 2 . . . . . . . . . Classes Destroyed 23 | 2 4 2 . 1 4 1 1 . 1 . . 2 . 1 . . . 2 . . . 1 . . . . 1 Worker 19 | . . 1 . . . . . . 3 . 2 . 2 . . . . . 1 . 5 . 1 . 4 . . Builder 10 | . . . . 1 1 . 1 . . . . . . . . . . . . . . . 1 . 6 . . Tunneler 5 | 1 1 1 . 1 . . . . . . . . . . . . . . . . . . . . 1 . . Hauler 5 | . . . . . 5 . . . . . . . . . . . . . . . . . . . . . . Recycler 13 | 1 1 . . 1 2 . . . 2 . 1 . . . . . . . 1 . 1 . 3 . . . . Mechanic 5 | . . . . . . . 1 . . . . . . . . . . . . . . . . . . . 4 Operator 19 | . 1 . . . 1 . 1 . 5 . . . 3 . . 4 . . . . 1 . . . 1 1 1 Watcher 34 | . 3 . . . 4 . 4 1 5 . . . 4 3 1 . . . 2 . . 1 1 . 1 1 3 Swarmer 134 | . 9 12 . 4 6 3 9 4 3 13 2 10 2 . . . . 9 2 11 10 8 . 12 5 . . Cutter 8 | . . . . . . . . . 2 . . . . . . . 2 . . . 3 1 . . . . . Saboteur 13 | . . . . . . . . . . . . 3 . . . . . 3 . 2 1 . . . . . 4 Grunt 205 | . 5 4 . . 7 9 5 5 2 5 . 10 8 12 3 . . 19 8 13 16 17 6 10 15 6 20 Brawler 19 | . . . . . 1 . . . 1 . . 2 2 . . . . . . 2 1 3 2 1 1 . 3 Duelist 17 | . . . . . . . . . . . . 2 1 . . . . 1 . 2 2 5 . 1 1 . 2 Sentry 85 | . . 2 . . 5 . 6 1 5 7 . 5 4 8 . 4 . 1 3 8 5 5 2 2 6 . 6 Specialist 3 | . . . . . . . . . . . . . . . . . . 2 . . . . . 1 . . . Hunter 36 | . . . . . 1 . 1 . . 2 . 5 . 2 . . 2 . 2 . . 7 4 2 . 6 2 Programmer 42 | . . . . . . 2 . . 1 3 . 1 3 . . . . . 1 6 . 2 2 4 7 3 7 Heavy 3 | . . . . . 1 . . . 1 . . . . . . . . . . . 1 . . . . . . Behemoth 14 | . . . . . . . . . . . . . . 2 . . . 3 . 2 1 3 1 . 1 . 1 Cetus Guard 2 | . . . . . . . . . . . . . . . 2 . . . . . . . . . . . . Tracker 1 | . . . . . . . . . . . . . . . . . . . . . . . . . . . 1 Investigator 1 | . . . . . . . . . . . . . . . . . . . . . . . . . . . 1 Striker 1 | . . . . . . . . . . . . . . . . . . . . . . 1 . . . . . Executioner 6 | . . . . . . . . . . . . . . . . . . 2 2 . . . . . . . 2 Best Kill Streak 31 | 2 4 6 . 4 4 4 6 5 6 14 2 6 4 4 5 2 2 6 10 6 6 8 11 9 13 3 31 Combat Bots Only 19 | . 3 6 . 4 3 4 5 4 6 14 1 6 4 4 5 2 2 6 8 6 6 8 7 9 8 3 19 Max Kills in Single Turn 3 | 1 2 2 . 1 2 1 2 2 2 2 1 2 1 1 1 1 1 1 2 3 3 2 2 3 2 2 2 Gunslinging 2 | . 1 1 . . 1 . . . . . . . . . . . . . . 2 1 1 1 1 1 . 1 Exploded 2 | . . 2 . . 1 1 2 2 2 2 1 1 1 . . . . 1 . . . . . . . . . Melee . | . . . . . . . . . . . . . . . . . . . . . . . . . . . . Uniques/NPCs Destroyed . | . . . . . . . . . . . . . . . . . . . . . . . . . . . . Combat | -11 -10 -10 -10 -9 -8 -8 -8 -8 -7 -7 -7 -7 -6 -6 -6 -6 -6 -6 -5 -5 -5 -5 -4 -4 -3 -3 -3 -------- Run | Yrd Mat Min Exi Min Mat Gar Mat Gar Fac Gar Fac Gar Fac Ext Cet Arc Hub Gar Fac Gar Fac Gar Fac Gar Res Qua Sec Hostile Shots Fired 1803 | . 38 72 . . 38 28 77 10 100 82 8 48 59 98 24 19 39 87 18 45 83 75 67 115 134 56 383 Missed 744 | . 10 11 . . 13 12 36 4 54 38 . 28 27 37 10 6 14 32 6 20 37 36 29 68 57 37 122 Damage Taken 16975 | . 257 733 . . 314 225 516 106 569 649 157 229 553 1242 314 262 428 1197 193 535 1167 791 910 751 1767 299 2811 Core 13037 | . 202 569 . . 247 195 413 84 421 496 132 186 441 994 203 197 298 866 155 414 892 569 675 548 1256 226 2358 Absorbed by Shields 414 | . . . . . . 4 . . . . . . . . . . . 9 . . . . . . . . 401 Redirected to Core 11376 | . 168 467 . . 193 107 357 84 411 445 81 130 391 892 179 197 283 808 133 360 791 530 594 497 1107 226 1945 Ignored by Resistances 3296 | . . . . . 10 . . . . . . . . . 39 37 47 159 22 39 129 91 97 89 152 42 2343 Regen/Repaired (Parts) 381 | . . . . . . . . . 17 . . . . . . . . . . . . . . . 364 . . Core Remaining (%) 89 | 100 . . . 62 . . . 65 . . . 100 . . . . . 100 . . . 100 . 98 . . . Volleys Fired 1855 | 4 46 42 . 13 106 40 97 19 67 66 18 79 117 83 15 41 25 89 72 80 109 106 70 103 163 60 125 Largest 6 | 2 3 3 . 1 2 1 2 3 2 1 1 1 2 2 2 4 5 6 6 5 5 6 6 6 6 6 6 Hottest 437 | 70 110 66 . 120 120 60 123 159 123 120 65 120 145 170 170 323 404 437 399 232 232 270 270 270 272 272 272 Shots Fired 4438 | 8 138 93 . 13 148 40 102 28 102 86 18 123 195 140 28 56 56 355 177 320 311 441 195 312 434 178 341 Gun 3621 | 8 138 83 . . 92 . . . 34 21 . 46 83 67 14 37 40 351 169 320 298 438 186 312 389 163 332 Cannon 669 | . . . . 13 54 37 96 24 62 53 17 72 111 73 14 19 16 . 8 . . . . . . . . Launcher 53 | . . 10 . . 2 3 6 4 5 12 1 5 1 . . . . 4 . . . . . . . . . Special 95 | . . . . . . . . . 1 . . . . . . . . . . . 13 3 9 . 45 15 9 Kinetic 2460 | 4 122 83 . . 3 37 89 9 4 . . . 17 . . . . 110 116 272 250 364 148 220 326 134 152 Thermal 1564 | 4 16 . . 13 57 . . . 88 74 17 118 177 140 28 56 56 241 61 48 48 74 38 92 63 29 26 Explosive 53 | . . 10 . . 2 3 6 4 5 12 1 5 1 . . . . 4 . . . . . . . . . Electromagnetic 112 | . . . . . 86 . 7 15 4 . . . . . . . . . . . . . . . . . . Slashing 154 | . . . . . . . . . . . . . . . . . . . . . . . . . . . 154 Robot Hit Streak 31 | 4 21 13 . 9 6 7 11 10 13 14 9 18 26 17 7 11 7 19 23 16 15 16 17 15 23 21 31 Robot Miss Streak 6 | 2 3 2 . . 6 3 5 6 2 1 1 1 5 3 2 2 5 4 5 4 5 4 3 5 3 2 4 Penetration Max 2 | . . . . . . 1 . . . . . . . . . . . 1 1 2 1 1 2 1 2 1 1 Secondary Targets 62 | . 1 3 . . 1 . . . . . . . . . . . 2 5 3 5 11 4 4 5 5 . 13 Max Gunslinging Chain 2 | . 1 1 . . 1 . . . . . . . . . . . 1 1 1 2 1 1 1 1 1 . 1 Autonomous 188 | . . . . . . . . . 34 23 . 46 66 15 2 2 . . . . . . . . . . . Shots Hit Robots 2429 | 5 90 54 . 5 56 23 56 10 47 35 6 60 95 88 18 40 20 198 91 164 170 215 120 170 245 109 239 Core Hits 1262 | 3 33 30 . 5 42 14 30 14 37 39 4 50 57 48 8 19 6 82 47 87 86 114 62 77 108 41 119 Critical Kills 58 | . . 1 . . . . . . 1 . . . . 4 1 . 1 2 . 6 3 3 4 5 14 6 7 Critical Parts Destroyed 78 | . . . . . . . . . 2 . . . . 2 . 3 . 3 6 13 5 5 3 5 14 8 9 Critical Strikes 158 | . 2 1 . . . 2 6 . 3 . . . 1 6 1 3 1 8 6 20 9 9 7 10 30 14 19 Burn 4 | . 2 . . . . . . . . . . . . . . . . 2 . . . . . . . . . Meltdown 2 | . . . . . . . . . . . . . . 1 1 . . . . . . . . . . . . Destroy 138 | . . 1 . . . . . . . . . . . 5 . 3 1 6 6 20 9 9 7 10 30 14 17 Blast 9 | . . . . . . 2 6 . . . . . 1 . . . . . . . . . . . . . . Smash 3 | . . . . . . . . . 3 . . . . . . . . . . . . . . . . . . Sever 2 | . . . . . . . . . . . . . . . . . . . . . . . . . . . 2 Melee Attacks 11 | . . . . . 1 . . . 10 . . . . . . . . . . . . . . . . . . Impact 10 | . . . . . . . . . 10 . . . . . . . . . . . . . . . . . . Slashing . | . . . . . . . . . . . . . . . . . . . . . . . . . . . . Piercing . | . . . . . . . . . . . . . . . . . . . . . . . . . . . . Sneak Attacks 5 | . . . . . . . . . 5 . . . . . . . . . . . . . . . . . . Combat Hostiles . | . . . . . . . . . . . . . . . . . . . . . . . . . . . . Follow-up Attacks . | . . . . . . . . . . . . . . . . . . . . . . . . . . . . Damage Inflicted 86409 | 55 802 1019 . 443 2963 1543 3215 956 2995 3460 383 3573 3902 3551 597 1345 589 5586 2983 5453 5127 6306 3669 5211 6964 2074 11645 Guns 65183 | 55 802 586 . . 1085 . . . 882 546 . 1433 2093 1349 211 735 589 5482 2983 5453 5030 6306 3669 5211 6964 2074 11645 Cannons 16813 | . . . . 443 1805 1374 2750 397 1333 1659 168 2053 1633 2202 386 610 . . . . . . . . . . . Explosions 3747 | . . 433 . . 72 169 465 559 223 1255 141 87 176 . . . . 104 . . 63 . . . . . . Melee 557 | . . . . . . . . . 557 . . . . . . . . . . . . . . . . . . Ramming 109 | . . . . . 1 . . . . . 74 . . . . . . . . . 34 . . . . . . Kinetic 40019 | 16 695 586 . . 103 1374 2605 202 107 . . . 354 . . . . 1638 1945 4500 4109 5366 2783 3654 5847 1546 2589 Thermal 32096 | 39 107 . . 443 1803 . . 64 2021 2205 168 3486 3372 3551 597 1345 589 3844 1038 953 921 940 886 1557 1117 528 522 Explosive 3644 | . . 433 . . 33 169 465 495 223 1255 141 87 176 . . . . 104 . . 63 . . . . . . Electromagnetic 1450 | . . . . . 1023 . 145 195 87 . . . . . . . . . . . . . . . . . . Impact 557 | . . . . . . . . . 557 . . . . . . . . . . . . . . . . . . Slashing 8534 | . . . . . . . . . . . . . . . . . . . . . . . . . . . 8534 Piercing . | . . . . . . . . . . . . . . . . . . . . . . . . . . . . Highest Corruption 7 | . . . . . . . . . 4 . . 1 4 . . . . . . 2 7 4 1 2 7 1 6 Average Corruption 2 | . . . . . . . . . 3 . . 1 3 . . . . . . 1 2 4 1 1 5 1 2 Corruption Purged 19 | . . . . . . . . . 4 . . . 4 . . . . . . . 5 . . . 6 . . Corruption Blocked . | . . . . . . . . . . . . . . . . . . . . . . . . . . . . Effects 152 | . . . . . . . . . 4 . . 4 19 . . . . . . 18 23 28 2 12 14 12 16 Message Errors 41 | . . . . . . . . . 1 . . 4 3 . . . . . . 5 7 8 . 2 4 2 5 Matter Fused 31 | . . . . . . . . . . . . . 5 . . . . . . 4 4 7 1 2 3 2 3 Heat Flow Errors 18 | . . . . . . . . . 2 . . . 3 . . . . . . 2 3 3 . 1 1 2 1 Energy Discharges 22 | . . . . . . . . . . . . . 3 . . . . . . 2 2 4 1 2 1 3 4 Parts Rejected 2 | . . . . . . . . . . . . . . . . . . . . . . 1 . 1 . . . Parts Fused 1 | . . . . . . . . . . . . . . . . . . . . 1 . . . . . . . Data Loss (minor) 13 | . . . . . . . . . . . . . 1 . . . . . . 2 4 1 . 2 2 . 1 Data Loss (major) 5 | . . . . . . . . . . . . . . . . . . . . 2 . 1 . . 2 . . Misfires 9 | . . . . . . . . . 1 . . . 3 . . . . . . . 1 2 . . . 2 . Alerts 1 | . . . . . . . . . . . . . . . . . . . . . . . . 1 . . . Weapon Failures 9 | . . . . . . . . . . . . . 1 . . . . . . . 2 1 . 1 1 1 2 Overload Shots . | . . . . . . . . . . . . . . . . . . . . . . . . . . . . Overflow Damage 1142 | . . 62 . 77 54 78 275 48 313 127 11 11 39 43 . . . . . . 4 . . . . . . Projectiles 577 | . . . . 77 54 78 263 8 4 . . 11 39 43 . . . . . . . . . . . . . Explosions 241 | . . 62 . . . . 12 40 . 127 . . . . . . . . . . . . . . . . . Melee 324 | . . . . . . . . . 309 . 11 . . . . . . . . . 4 . . . . . . Knockbacks 18 | . . . . . . 8 6 . 2 . . . 2 . . . . . . . . . . . . . . Impact 2 | . . . . . . . . . 2 . . . . . . . . . . . . . . . . . . Kinetic 16 | . . . . . . 8 6 . . . . . 2 . . . . . . . . . . . . . . Secondary . | . . . . . . . . . . . . . . . . . . . . . . . . . . . . Self-Inflicted Damage 306 | . . 64 . . . . . . 65 124 36 . . . . . . . . . 17 . . . . . . Shots 7 | . . 2 . . . . . . 2 3 . . . . . . . . . . . . . . . . . Rammed 5 | . . . . . 1 . . . . . 3 . . . . . . . . . 1 . . . . . . Targets Rammed 5 | . . . . . 1 . . . . . 3 . . . . . . . . . 1 . . . . . . Kicked . | . . . . . . . . . . . . . . . . . . . . . . . . . . . . Crushed . | . . . . . . . . . . . . . . . . . . . . . . . . . . . . Highest Temperature 458 | 70 192 51 . 272 201 . . 71 304 110 . 75 158 78 178 218 458 380 135 157 141 177 . 83 202 68 132 Average Temperature 61 | 30 53 20 . 97 51 . . 40 82 33 . 19 39 23 77 40 230 118 44 45 21 49 . 33 25 49 67 Received Heat Transfer 2653 | . 78 192 . . 171 90 135 45 96 96 9 63 156 330 27 45 6 204 27 36 108 75 105 84 138 51 286 Effects 7 | . . . . . . . . . . . . . . . . . 1 6 . . . . . . . . . Shutdowns 2 | . . . . . . . . . . . . . . . . . 1 1 . . . . . . . . . Energy Bleed 1 | . . . . . . . . . . . . . . . . . . 1 . . . . . . . . . Interference 4 | . . . . . . . . . . . . . . . . . . 4 . . . . . . . . . Siege Activations . | . . . . . . . . . . . . . . . . . . . . . . . . . . . . Robots Corrupted 4 | . . . . . 1 . . . 2 . 1 . . . . . . . . . . . . . . . . Combat Hostiles 1 | . . . . . . . . . . . 1 . . . . . . . . . . . . . . . . Parts Fried 17 | . . . . . 7 . 3 2 5 . . . . . . . . . . . . . . . . . . Impact Corruptions 11 | . . . . . . . . . 8 . 2 . . . . . . . . . 1 . . . . . . Robots Melted 4 | . . . . . . . . . . . . . 1 1 2 . . . . . . . . . . . . Combat Hostiles 4 | . . . . . . . . . . . . . 1 1 2 . . . . . . . . . . . . Parts Melted 75 | . 2 . . 3 5 . . . 3 7 . 3 12 8 4 3 . 12 1 1 4 1 3 1 . 1 1 Heat Transferred 48556 | 111 457 . . 960 3681 . . 50 3307 3722 222 5418 4748 5216 876 2036 777 5283 1443 1295 1295 1258 1221 2183 1554 740 703 Parts Sabotaged 2 | . . . . . . . . . . . . . . . . . . . . . . . 2 . . . . Parts Stolen . | . . . . . . . . . . . . . . . . . . . . . . . . . . . . Parts Stripped . | . . . . . . . . . . . . . . . . . . . . . . . . . . . . Power Chain Reactions 3 | . . . . . 1 . . 1 . . . . . . . . . . . . 1 . . . . . . Alert | -11 -10 -10 -10 -9 -8 -8 -8 -8 -7 -7 -7 -7 -6 -6 -6 -6 -6 -6 -5 -5 -5 -5 -4 -4 -3 -3 -3 ------- Run | Yrd Mat Min Exi Min Mat Gar Mat Gar Fac Gar Fac Gar Fac Ext Cet Arc Hub Gar Fac Gar Fac Gar Fac Gar Res Qua Sec Peak Influence 2595 | 10 338 398 . 105 693 796 874 908 534 890 760 1337 972 430 336 248 333 1147 1141 2035 1530 2071 1169 1015 586 330 2595 Initial 1087 | . 6 86 . . 3 303 388 568 476 150 466 532 701 232 136 134 16 233 602 798 1068 807 1087 653 570 238 38 Average 599 | 5 203 237 . 15 196 556 507 736 254 449 623 947 576 191 289 183 150 713 792 1450 1005 1557 980 781 219 105 794 Maximum Alert Level 5 | . 1 1 . . 2 3 3 3 2 3 3 4 3 2 1 1 1 4 4 5 4 5 4 3 2 1 5 Low Security (%) 24 | 100 46 41 . 100 64 . . . 25 12 . . 4 47 7 57 68 . . . . . . . 51 81 34 Level 1 22 | . 53 58 . . 17 20 7 . 64 30 . . 32 52 92 42 31 16 . . . . . 2 38 18 30 Level 2 15 | . . . . . 18 55 84 42 9 41 65 25 17 . . . . 31 27 . 12 . . 31 9 . . Level 3 22 | . . . . . . 23 8 57 . 15 34 43 45 . . . . 40 64 20 52 16 92 66 . . . Level 4 8 | . . . . . . . . . . . . 31 . . . . . 11 8 41 35 29 7 . . . . Level 5 5 | . . . . . . . . . . . . . . . . . . . . 38 . 53 . . . . . High Security . | . . . . . . . . . . . . . . . . . . . . . . . . . . . . Max Security 1 | . . . . . . . . . . . . . . . . . . . . . . . . . . . 35 Squads Dispatched 101 | . 2 . . . 3 . 3 . 5 . 3 . 14 6 1 . 4 . 3 . 15 . 7 . 6 3 26 Investigation 35 | . 2 . . . 1 . 1 . 1 . 2 . 9 3 1 . 2 . 2 . 6 . 3 . 1 . 1 Extermination 9 | . . . . . . . . . 1 . . . 2 . . . . . . . 1 . 1 . 1 2 1 Reinforcement 24 | . . . . . 1 . 2 . 3 . 1 . 1 3 . . 2 . . . 4 . . . 4 1 2 Assault 27 | . . . . . . . . . . . . . 2 . . . . . . . 2 . 3 . . . 20 Garrison 4 | . . . . . 1 . . . . . . . . . . . . . 1 . 2 . . . . . . Intercept 2 | . . . . . . . . . . . . . . . . . . . . . . . . . . . 2 Searches Triggered 2 | . . . . . 1 . . . . . . . 1 . . . . . . . . . . . . . . Construction Impeded 3 | . . . . . . . . . . . . . 1 1 . . . . . . . . . . 1 . . Haulers Reinforced 3 | . . . . . . . . . . . . . . . . . . . . . . . . . 2 1 . Active Scanning Responses 30 | . . . . . . . . . . 1 2 1 5 3 1 . 2 1 2 1 6 1 3 1 . . . Cargo Convoy Interrupts . | . . . . . . . . . . . . . . . . . . . . . . . . . . . . Stealth | -11 -10 -10 -10 -9 -8 -8 -8 -8 -7 -7 -7 -7 -6 -6 -6 -6 -6 -6 -5 -5 -5 -5 -4 -4 -3 -3 -3 --------- Run | Yrd Mat Min Exi Min Mat Gar Mat Gar Fac Gar Fac Gar Fac Ext Cet Arc Hub Gar Fac Gar Fac Gar Fac Gar Res Qua Sec Distress Signals 20 | . 1 . . . . . 3 . . . 2 . . 3 1 . . 1 . . 1 2 1 . 4 . 1 Communications Jammed 2 | . . . . . . . . . . . . . . . . . . . . . . . . . 1 . 1 Distress Signals 2 | . . . . . . . . . . . . . . . . . . . . . . . . . 1 . 1 Times Spotted 741 | . 21 18 . . 25 12 28 9 22 28 7 24 33 27 8 12 8 39 16 38 46 39 25 36 61 22 137 Peak Tracking Total 25 | . 4 3 . 3 5 4 3 3 6 6 3 4 6 4 5 1 3 7 5 7 5 4 6 9 5 3 25 Tactical Retreats 54 | . 3 . . . 4 2 1 . 2 2 3 1 4 . . . . 4 1 6 5 . 1 3 4 . 8 Traps | -11 -10 -10 -10 -9 -8 -8 -8 -8 -7 -7 -7 -7 -6 -6 -6 -6 -6 -6 -5 -5 -5 -5 -4 -4 -3 -3 -3 ------- Run | Yrd Mat Min Exi Min Mat Gar Mat Gar Fac Gar Fac Gar Fac Ext Cet Arc Hub Gar Fac Gar Fac Gar Fac Gar Res Qua Sec Traps Triggered 53 | . . . . . 1 2 . . 4 . . 4 6 2 . . . 6 . 6 4 6 1 5 3 3 . Indirectly . | . . . . . . . . . . . . . . . . . . . . . . . . . . . . Trap Hack Attempts . | . . . . . . . . . . . . . . . . . . . . . . . . . . . . Triggered . | . . . . . . . . . . . . . . . . . . . . . . . . . . . . Disarmed . | . . . . . . . . . . . . . . . . . . . . . . . . . . . . Reprogrammed . | . . . . . . . . . . . . . . . . . . . . . . . . . . . . Reused . | . . . . . . . . . . . . . . . . . . . . . . . . . . . . Traps Extracted . | . . . . . . . . . . . . . . . . . . . . . . . . . . . . Installed . | . . . . . . . . . . . . . . . . . . . . . . . . . . . . Triggered 1 | . . . . . . . . 1 . . . . . . . . . . . . . . . . . . . Machines | -11 -10 -10 -10 -9 -8 -8 -8 -8 -7 -7 -7 -7 -6 -6 -6 -6 -6 -6 -5 -5 -5 -5 -4 -4 -3 -3 -3 ---------- Run | Yrd Mat Min Exi Min Mat Gar Mat Gar Fac Gar Fac Gar Fac Ext Cet Arc Hub Gar Fac Gar Fac Gar Fac Gar Res Qua Sec Machines Disabled 93 | . . . . 1 1 6 6 1 4 5 1 2 5 1 . 2 1 2 9 5 9 6 . 3 3 3 17 Max in Single Turn 3 | . . . . . 1 1 2 1 1 1 1 1 1 1 . 1 1 . 3 1 2 1 . 1 1 1 2 Garrison Access 11 | . . . . . . . . . 3 . . . 2 . . . . . 1 . 2 . . . 2 1 . Garrison Relay 11 | . . . . . . . . . . . . . . . . . . . . 5 . 4 . 2 . . . Phase Generator 2 | . . . . . . . . . . 1 . . . . . . . . . 1 . . . . . . . Machines Repaired . | . . . . . . . . . . . . . . . . . . . . . . . . . . . . Machines Dismantled 2 | . . . . . . . . . . . . . . . . . . . . 2 . . . . . . . Machines Sabotaged . | . . . . . . . . . . . . . . . . . . . . . . . . . . . . Overloaded Fab Kills . | . . . . . . . . . . . . . . . . . . . . . . . . . . . . Hacking | -11 -10 -10 -10 -9 -8 -8 -8 -8 -7 -7 -7 -7 -6 -6 -6 -6 -6 -6 -5 -5 -5 -5 -4 -4 -3 -3 -3 --------- Run | Yrd Mat Min Exi Min Mat Gar Mat Gar Fac Gar Fac Gar Fac Ext Cet Arc Hub Gar Fac Gar Fac Gar Fac Gar Res Qua Sec Machines Accessed 165 | . 8 . 4 1 12 2 7 2 22 5 1 2 17 9 2 . 5 3 3 3 17 2 7 3 12 8 8 Terminals 125 | . 6 . . 1 9 2 5 2 12 5 . 2 13 9 2 . 4 3 . 3 13 2 6 3 8 7 8 Fabricators 6 | . . . . . . . . . 3 . . . 1 . . . . . . . 1 . . . 1 . . Repair Stations 5 | . . . . . 1 . . . 2 . . . 1 . . . . . . . . . . . 1 . . Recycling Units 4 | . 2 . . . 1 . 1 . . . . . . . . . . . . . . . . . . . . Scanalyzers 1 | . . . . . . . . . 1 . . . . . . . . . . . . . . . . . . Garrison Access 20 | . . . . . 1 . 1 . 4 . 1 . 2 . . . 1 . 3 . 3 . 1 . 2 1 . Total Hacks 509 | . 23 . 10 4 46 3 35 5 80 14 1 4 47 32 7 . 17 13 3 6 64 8 21 7 28 20 11 Successful 279 | . 14 . 10 2 23 2 16 2 47 6 1 2 32 14 2 . 10 6 3 4 34 3 7 6 14 13 6 Failed 229 | . 9 . . 2 23 1 19 3 33 8 . 2 15 18 5 . 7 7 . 2 29 5 14 1 14 7 5 Catastrophic 30 | . . . . . 3 1 2 1 4 1 . . 3 1 1 . 1 1 . 2 1 . 3 . 2 2 1 Database Lockouts 1 | . . . . . . . . . . . . . . . . . . . . . 1 . . . . . . Manual 253 | . 14 . 1 4 35 . 29 . 31 4 . . 15 8 . . 12 10 . 3 45 6 12 4 10 9 1 Terminals 429 | . 21 . . 4 41 3 31 5 48 14 . 4 40 32 7 . 16 13 . 6 59 8 20 7 20 19 11 Fabricators 12 | . . . . . . . . . 5 . . . 3 . . . . . . . 1 . . . 3 . . Repair Stations 12 | . . . . . 2 . . . 5 . . . 2 . . . . . . . . . . . 3 . . Recycling Units 6 | . 2 . . . 2 . 2 . . . . . . . . . . . . . . . . . . . . Scanalyzers 17 | . . . . . . . . . 17 . . . . . . . . . . . . . . . . . . Garrison Access 23 | . . . . . 1 . 2 . 5 . 1 . 2 . . . 1 . 3 . 4 . 1 . 2 1 . Terminal Hacks 183 | . 8 . 10 2 13 2 9 2 15 4 . 2 23 13 2 . 5 4 . 4 26 2 6 5 9 11 6 Record 12 | . . . 9 . . . . . . . . . . . 1 . . . . . . . . . . 2 . Part Schematic 7 | . . . . . . . . . 1 . . . 2 2 . . . . . . 2 . . . . . . Robot Analysis 32 | . 3 . . 2 7 . 1 . 3 . . . 4 1 . . . . . . 8 . . . 1 2 . Prototype ID Bank 4 | . 1 . . . . . . . 1 . . . 2 . . . . . . . . . . . . . . Open Door 14 | . . . . . . . . . . 1 . 1 1 3 1 . . . . 1 . . . 1 . 1 4 Branch Access Points 3 | . . . . . . . . . 1 . . . . . . . . . . . . . . . 1 1 . Emergency Access Points 7 | . . . . . . 1 . . . 1 . 1 . . . . . 1 . 1 . 1 . 1 . . . Machine Index 1 | . . . . . . . . . . . . . . 1 . . . . . . . . . . . . . Terminal Index 10 | . 1 . . . 1 . 1 . 1 . . . 1 . . . 1 . . . 1 . 1 . 1 1 . Fabricator Index 1 | . . . . . . . . . . . . . . . . . . . . . . . . . 1 . . Recycling Unit Index 1 | . . . . . . . 1 . . . . . . . . . . . . . . . . . . . . Garrison Index 4 | . . . . . . . . . . . . . . . . . 1 . . . 1 . 1 . . 1 . Alert Level 2 | . . . . . 2 . . . . . . . . . . . . . . . . . . . . . . Unreport Threat 29 | . . . . . 1 . 3 . 3 . . . 4 2 . . . 1 . 1 6 . 3 2 2 1 . Locate Traps 24 | . 1 . . . 1 . 1 . 4 . . . 6 2 . . 1 . . . 3 . 1 . 2 1 1 Security Status 1 | . . . . . . . . . . . . . . . . . . . . . . . . . . 1 . Recall Investigation 4 | . . . . . . . . . . . . . 1 1 . . 1 . . . 1 . . . . . . Recall Reinforcements 2 | . . . . . . . . . 1 . . . . 1 . . . . . . . . . . . . . Recall Assault 1 | . . . . . . . . . . . . . . . . . . . . . 1 . . . . . . Hauler Manifests 5 | . 1 . . . . . 1 . . . . . 1 . . . . . . . 1 . . . 1 . . Zone Layout 7 | . 1 . . . 1 . 1 . . . . . 1 . . . 1 . . . 2 . . . . . . Garrison Registry 4 | . . . . . . 1 . 1 . 1 . . . . . . . . . 1 . . . . . . . Patrol Navigation 2 | . . . . . . . . . . 1 . . . . . . . 1 . . . . . . . . . Security Stations 4 | . . . . . . . . 1 . . . . . . . . . 1 . . . 1 . 1 . . . Derelict Proto ID Bank 1 | . . . 1 . . . . . . . . . . . . . . . . . . . . . . . . Activate Exoskeleton 1 | . . . . . . . . . . . . . . . . . . . . . . . . . . . 1 Fabricator Hacks 4 | . . . . . . . . . 1 . . . 1 . . . . . . . 1 . . . 1 . . Network Status 3 | . . . . . . . . . 1 . . . 1 . . . . . . . 1 . . . . . . Load Schematic 1 | . . . . . . . . . . . . . . . . . . . . . . . . . 1 . . Repair Station Hacks 5 | . . . . . . . . . 3 . . . . . . . . . . . . . . . 2 . . Scan Component 3 | . . . . . . . . . 2 . . . . . . . . . . . . . . . 1 . . Repair 2 | . . . . . . . . . 1 . . . . . . . . . . . . . . . 1 . . Recycling Unit Hacks 2 | . . . . . 2 . . . . . . . . . . . . . . . . . . . . . . Report Inventory 1 | . . . . . 1 . . . . . . . . . . . . . . . . . . . . . . Retrieve Components 1 | . . . . . 1 . . . . . . . . . . . . . . . . . . . . . . Scanalyzer 17 | . . . . . . . . . 17 . . . . . . . . . . . . . . . . . . Insert Component 8 | . . . . . . . . . 8 . . . . . . . . . . . . . . . . . . Analyze 9 | . . . . . . . . . 9 . . . . . . . . . . . . . . . . . . Garrison Access Hacks 21 | . . . . . 1 . 1 . 4 . 1 . 2 . . . 1 . 3 . 4 . 1 . 2 1 . Unlock Access 9 | . . . . . 1 . 1 . 1 . 1 . . . . . 1 . 2 . 1 . 1 . . . . Seal Access 11 | . . . . . . . . . 3 . . . 2 . . . . . 1 . 2 . . . 2 1 . Coupler Status 1 | . . . . . . . . . . . . . . . . . . . . . 1 . . . . . . Unauthorized Hacks 47 | . 6 . . . 7 . 6 . 7 2 . . 6 1 . . 4 2 . . 3 1 . 1 . 1 . Terminals 38 | . 4 . . . 6 . 5 . 5 2 . . 3 1 . . 4 2 . . 3 1 . 1 . 1 . Track 8 | . 2 . . . 2 . 1 . 3 . . . . . . . . . . . . . . . . . . Assimilate 2 | . . . . . . . . . . . . . . . . . 2 . . . . . . . . . . Botnet 23 | . 2 . . . 3 . 2 . 2 2 . . 2 1 . . 2 2 . . 2 1 . 1 . 1 . Disrupt 1 | . . . . . . . 1 . . . . . . . . . . . . . . . . . . . . Operators 4 | . . . . . 1 . 1 . . . . . 1 . . . . . . . 1 . . . . . . Fabricators 3 | . . . . . . . . . 1 . . . 2 . . . . . . . . . . . . . . Fabnet 2 | . . . . . . . . . 1 . . . 1 . . . . . . . . . . . . . . Recompile 1 | . . . . . . . . . . . . . 1 . . . . . . . . . . . . . . Repair Stations 3 | . . . . . 1 . . . 1 . . . 1 . . . . . . . . . . . . . . Mechanics 3 | . . . . . 1 . . . 1 . . . 1 . . . . . . . . . . . . . . Recycling Units 2 | . 2 . . . . . . . . . . . . . . . . . . . . . . . . . . Tunnel 2 | . 2 . . . . . . . . . . . . . . . . . . . . . . . . . . Scanalyzers . | . . . . . . . . . . . . . . . . . . . . . . . . . . . . Garrison Access 1 | . . . . . . . 1 . . . . . . . . . . . . . . . . . . . . Reprogram 1 | . . . . . . . 1 . . . . . . . . . . . . . . . . . . . . Data Cores Recovered 10 | . 1 . . . 1 . 1 . 4 . . . 1 . . . . . . . 1 . . . . 1 . Used 4 | . . . . . . . 1 . 3 . . . . . . . . . . . . . . . . . . Hacking Detections 117 | . 6 . . 1 10 2 7 2 14 3 1 2 12 7 2 . 4 2 1 2 13 2 6 1 10 4 3 Full Trace Events 6 | . . . . . 1 . . 1 1 . . . 2 . . . . . . . . . . . . . 1 Feedback Events 1 | . . . . . . . . . . . . . . . . . . . . . . . . . . . 1 Corruption 1 | . . . . . . . . . . . . . . . . . . . . . . . . . . . 1 Feedback Blocked . | . . . . . . . . . . . . . . . . . . . . . . . . . . . . Robot Schematics Acquired . | . . . . . . . . . . . . . . . . . . . . . . . . . . . . Robots Built . | . . . . . . . . . . . . . . . . . . . . . . . . . . . . Authchips . | . . . . . . . . . . . . . . . . . . . . . . . . . . . . Time . | . . . . . . . . . . . . . . . . . . . . . . . . . . . . Total Robot Build Rating . | . . . . . . . . . . . . . . . . . . . . . . . . . . . . Part Schematics Acquired 20 | . . . . . . . . . 9 . . . 2 2 . . . . . . 2 . . . . . 5 Parts Built . | . . . . . . . . . . . . . . . . . . . . . . . . . . . . Authchips . | . . . . . . . . . . . . . . . . . . . . . . . . . . . . Time . | . . . . . . . . . . . . . . . . . . . . . . . . . . . . Total Part Build Rating . | . . . . . . . . . . . . . . . . . . . . . . . . . . . . Parts Repaired 2 | . . . . . . . . . 1 . . . . . . . . . . . . . . . 1 . . Time 55 | . . . . . . . . . 19 . . . . . . . . . . . . . . . 36 . . Parts Recycled . | . . . . . . . . . . . . . . . . . . . . . . . . . . . . Recycled Matter . | . . . . . . . . . . . . . . . . . . . . . . . . . . . . Retrieved Matter . | . . . . . . . . . . . . . . . . . . . . . . . . . . . . Retrieved Components 10 | . . . . . 10 . . . . . . . . . . . . . . . . . . . . . . Parts Scanalyzed 8 | . . . . . . . . . 8 . . . . . . . . . . . . . . . . . . Part Schematics Acquired 8 | . . . . . . . . . 8 . . . . . . . . . . . . . . . . . . Parts Damaged . | . . . . . . . . . . . . . . . . . . . . . . . . . . . . Bothacking | -11 -10 -10 -10 -9 -8 -8 -8 -8 -7 -7 -7 -7 -6 -6 -6 -6 -6 -6 -5 -5 -5 -5 -4 -4 -3 -3 -3 ------------ Run | Yrd Mat Min Exi Min Mat Gar Mat Gar Fac Gar Fac Gar Fac Ext Cet Arc Hub Gar Fac Gar Fac Gar Fac Gar Res Qua Sec Used RIF Installer 10 | . . . . . . 2 . 1 . 1 . 1 . . . . . 1 . 2 . 1 . 1 . . . Coupler Efficiency 1 | . . . . . . . . . . . . 1 . . . . . . . . . . . . . . . Hotswap 1 | . . . . . . 1 . . . . . . . . . . . . . . . . . . . . . Code Merge 1 | . . . . . . . . . . . . . . . . . . . . 1 . . . . . . . Threat Obfuscator 3 | . . . . . . . . 1 . . . . . . . . . . . . . 1 . 1 . . . Zone Cloak 1 | . . . . . . . . . . 1 . . . . . . . . . . . . . . . . . Robot Detection 1 | . . . . . . . . . . . . . . . . . . 1 . . . . . . . . . Crosswire 1 | . . . . . . . . . . . . . . . . . . . . 1 . . . . . . . Robots Hacked 59 | . . . . . 1 . . . . . . . 1 . . . . . 1 1 7 1 8 . 22 11 6 Non-combat 28 | . . . . . 1 . . . . . . . . . . . . . . . 7 . 8 . 12 . . Combat 31 | . . . . . . . . . . . . . 1 . . . . . 1 1 . 1 . . 10 11 6 Robot Hacks Applied 78 | . . . . . 1 . . . . . . . . . . . . . . . 12 1 8 . 35 13 8 parse_system 3 | . . . . . . . . . . . . . . . . . . . . . . 1 . . . 2 . find_chute 1 | . . . . . . . . . . . . . . . . . . . . . . . 1 . . . . map_walls 5 | . . . . . . . . . . . . . . . . . . . . . . . 4 . 1 . . find_fabricator 3 | . . . . . . . . . . . . . . . . . . . . . 1 . 1 . 1 . . drop_inventory 5 | . . . . . . . . . . . . . . . . . . . . . . . 1 . 4 . . find_station 1 | . . . . . . . . . . . . . . . . . . . . . 1 . . . . . . check_alert 1 | . . . . . 1 . . . . . . . . . . . . . . . . . . . . . . purge_threat 6 | . . . . . . . . . . . . . . . . . . . . . 5 . . . 1 . . locate_traps 7 | . . . . . . . . . . . . . . . . . . . . . 2 . . . 5 . . block_reporting 6 | . . . . . . . . . . . . . . . . . . . . . 1 . . . 5 . . map_route 3 | . . . . . . . . . . . . . . . . . . . . . 1 . 1 . 1 . . relay_feed 1 | . . . . . . . . . . . . . . . . . . . . . . . . . 1 . . find_shortcuts 1 | . . . . . . . . . . . . . . . . . . . . . . . . . 1 . . find_garrison 4 | . . . . . . . . . . . . . . . . . . . . . . . . . 3 . 1 link_fov 2 | . . . . . . . . . . . . . . . . . . . . . 1 . . . 1 . . scatter_targeting 4 | . . . . . . . . . . . . . . . . . . . . . . . . . . 4 . wipe_record 2 | . . . . . . . . . . . . . . . . . . . . . . . . . 1 . 1 disable_weapons 5 | . . . . . . . . . . . . . . . . . . . . . . . . . 4 . 1 reboot_system 3 | . . . . . . . . . . . . . . . . . . . . . . . . . . 1 2 overwrite_iff 13 | . . . . . . . . . . . . . . . . . . . . . . . . . 5 5 3 streamctrl_low 1 | . . . . . . . . . . . . . . . . . . . . . . . . . 1 . . formatsys_high 1 | . . . . . . . . . . . . . . . . . . . . . . . . . . 1 . Relay Couplers Released 19 | . . . . . . . . . . . . 2 . . . . . . . 8 . 6 . 3 . . . Machine Destruction 17 | . . . . . . . . . . . . . . . . . . . . 8 . 6 . 3 . . . Programmers 2 | . . . . . . . . . . . . 2 . . . . . . . . . . . . . . . Attached 8 | . . . . . . . . . . . . . . . . . . . . 2 . 1 . 3 . 1 1 Crosswired 7 | . . . . . . . . . . . . . . . . . . . . 2 . 1 . 4 . . . Merged Code Value 91 | . . . . . . . . . . . . . . . . . . . . 18 . 18 . 55 . . . Fabnet Peak Effective % 3 | . . . . . . . . . . . . . 3 3 3 3 3 3 1 1 1 1 . . . . . Autooverrided 3 | . . . . . . . . . . . . . 1 . . . . . 1 1 . . . . . . . Robots Rewired 38 | . . . . . . . . . . 4 . 2 . 11 . . . 4 . 11 . 6 . . . . . Allies Hacked . | . . . . . . . . . . . . . . . . . . . . . . . . . . . . Hacks Repelled . | . . . . . . . . . . . . . . . . . . . . . . . . . . . . Allies | -11 -10 -10 -10 -9 -8 -8 -8 -8 -7 -7 -7 -7 -6 -6 -6 -6 -6 -6 -5 -5 -5 -5 -4 -4 -3 -3 -3 -------- Run | Yrd Mat Min Exi Min Mat Gar Mat Gar Fac Gar Fac Gar Fac Ext Cet Arc Hub Gar Fac Gar Fac Gar Fac Gar Res Qua Sec Total Allies 66 | . . . . 2 . . 2 . . 4 . 2 1 13 . . . 4 1 14 . 6 . 2 6 6 3 Largest Group 8 | . . . . 2 . . 2 . . 4 . 2 1 8 7 . . 4 5 8 5 4 . 2 1 2 2 Highest-Rated Group 483 | . . . . 47 . . 32 . . 114 . 56 85 241 221 . . 471 483 389 220 218 . 160 56 401 462 Highest-Rated Ally 343 | . . . . 31 . . 16 . . 39 . 31 85 39 39 . . 148 148 95 51 119 . 80 56 343 343 Total Orders 72 | . . . . . . . . . . 1 . 5 2 7 10 . . 16 7 7 1 7 . . . 6 3 STAY 37 | . . . . . . . . . . 1 . 3 . 4 3 . . 9 3 4 1 4 . . . 3 2 FOLLOW 21 | . . . . . . . . . . . . 2 . 1 2 . . 5 2 3 . 2 . . . 3 1 GUARD 7 | . . . . . . . . . . . . . . . 4 . . 1 2 . . . . . . . . AID 5 | . . . . . . . . . . . . . . 2 1 . . 1 . . . 1 . . . . . EXPLORE 2 | . . . . . . . . . . . . . 2 . . . . . . . . . . . . . . Ally Attacks 382 | . . . . 5 . . 2 . . 6 . 1 . 52 49 . . 27 16 63 58 32 . 17 8 15 31 Total Damage 9928 | . . . . 21 . . 210 . . 97 . . 49 886 965 . . 609 245 1155 1745 1061 . 633 282 678 1292 Kills 66 | . . . . . . . 2 . . 2 . . 1 4 4 . . 7 3 9 13 5 . 5 . 6 5 Allies Corrupted . | . . . . . . . . . . . . . . . . . . . . . . . . . . . . Allies Melted 2 | . . . . . . . . . . . . . . . . . . . . 1 . . . . . 1 . Intel | -11 -10 -10 -10 -9 -8 -8 -8 -8 -7 -7 -7 -7 -6 -6 -6 -6 -6 -6 -5 -5 -5 -5 -4 -4 -3 -3 -3 ------- Run | Yrd Mat Min Exi Min Mat Gar Mat Gar Fac Gar Fac Gar Fac Ext Cet Arc Hub Gar Fac Gar Fac Gar Fac Gar Res Qua Sec Robot Analysis Total 32 | . 3 . . 2 7 . 1 . 3 . . . 4 1 . . . . . . 8 . . . 1 2 . Derelict Logs Recovered 2 | . . 1 . 1 . . . . . . . . . . . . . . . . . . . . . . . Drone Launches 10 | . . . . . . . . . . . . . 10 . . . . . . . . . . . . . . Drone Recoveries . | . . . . . . . . . . . . . . . . . . . . . . . . . . . . Exploration | -11 -10 -10 -10 -9 -8 -8 -8 -8 -7 -7 -7 -7 -6 -6 -6 -6 -6 -6 -5 -5 -5 -5 -4 -4 -3 -3 -3 ------------- Run | Yrd Mat Min Exi Min Mat Gar Mat Gar Fac Gar Fac Gar Fac Ext Cet Arc Hub Gar Fac Gar Fac Gar Fac Gar Res Qua Sec Turns Passed 25987 | 44 856 824 567 471 1621 564 796 271 1758 669 385 942 1772 1312 182 435 312 1355 798 1488 1447 1427 813 1029 1542 1319 988 Spaces Moved 32702 | 23 808 690 590 431 1316 670 813 351 3050 934 635 1257 3166 1616 221 333 476 1290 929 1930 2103 1668 1094 1174 1982 2032 1120 Core 10 | 7 . 3 . . . . . . . . . . . . . . . . . . . . . . . . . Treads 2 | . . 2 . . . . . . . . . . . . . . . . . . . . . . . . . Legs 426 | 1 . . . . . . . . . . . . . . . . . . . . . . . . . . 425 Wheels 3229 | 15 808 685 590 431 700 . . . . . . . . . . . . . . . . . . . . . . Hover 29035 | . . . . . 616 670 813 351 3050 934 635 1257 3166 1616 221 333 476 1290 929 1930 2103 1668 1094 1174 1982 2032 695 Flight . | . . . . . . . . . . . . . . . . . . . . . . . . . . . . Fastest Speed 30 | 80 80 80 95 80 52 48 48 48 40 40 40 40 38 38 42 42 42 42 42 44 44 44 44 44 40 43 30 Average Speed 48 | 103 80 93 95 96 88 50 48 48 42 40 40 40 40 39 42 43 42 42 45 45 44 44 44 44 42 43 40 Slowest Speed 200 | 150 80 200 95 110 130 52 48 48 108 40 40 40 100 110 42 102 42 42 102 48 44 44 44 44 44 105 105 Overloaded Moves . | . . . . . . . . . . . . . . . . . . . . . . . . . . . . Propulsion Burnouts . | . . . . . . . . . . . . . . . . . . . . . . . . . . . . Robots Hopped . | . . . . . . . . . . . . . . . . . . . . . . . . . . . . Cave-ins Triggered . | . . . . . . . . . . . . . . . . . . . . . . . . . . . . Teleports 2 | . . . . . . . . . . . . . . . . . . . . . . . . . . . 2 Time Travels 1 | . . . . . . . . . . . . . . . . . . . . . . . . . . 1 . Exploration Rate (%) 67 | 2 98 98 91 98 79 65 70 41 74 67 11 68 77 98 81 97 32 71 22 87 65 93 33 86 45 94 52 Regions Visited 27 Branch Regions 9 Pre-discovered Areas 3 | . 2 . 1 . . . . . . . . . . . . . . . . . . . . . . . . Known Exits Taken 16 | . . . 1 1 1 . 1 . 1 . 1 . 1 1 1 1 1 . 1 . 1 . 1 . 1 1 . Unknown Exits Taken 3 | 1 1 1 . . . . . . . . . . . . . . . . . . . . . . . . . Scrap Searched 2 | . . 1 . 1 . . . . . . . . . . . . . . . . . . . . . . . Spaces Dug 271 | . . 10 . . 18 2 17 1 19 7 7 22 58 3 . . 16 . 14 . 35 . 10 . 13 8 11 Terrain Destroyed 1358 | . . 77 . 1 32 16 114 47 103 197 10 63 80 15 3 2 16 83 57 20 147 38 50 19 94 36 38 Melee 5 | . . . . . . . . . 5 . . . . . . . . . . . . . . . . . . Projectile 680 | . . . . 1 10 11 46 5 22 2 7 2 62 15 3 2 16 22 45 20 123 33 50 17 93 35 38 AOE 664 | . . 77 . . 22 5 68 42 76 195 3 61 18 . . . . 61 12 . 24 . . . . . . Terrain Rammed . | . . . . . . . . . . . . . . . . . . . . . . . . . . . . Walls Destroyed . | . . . . . . . . . . . . . . . . . . . . . . . . . . . . Machines Disabled . | . . . . . . . . . . . . . . . . . . . . . . . . . . . . Actions | -11 -10 -10 -10 -9 -8 -8 -8 -8 -7 -7 -7 -7 -6 -6 -6 -6 -6 -6 -5 -5 -5 -5 -4 -4 -3 -3 -3 --------- Run | Yrd Mat Min Exi Min Mat Gar Mat Gar Fac Gar Fac Gar Fac Ext Cet Arc Hub Gar Fac Gar Fac Gar Fac Gar Res Qua Sec Total 39770 | 34 941 797 596 474 1627 832 1074 420 3414 1155 746 1609 3522 2149 279 562 554 1922 1172 2345 2423 2114 1301 1500 2413 2362 1433 Wait 3019 | . 59 25 . 8 131 90 135 50 166 65 90 193 134 289 13 143 49 349 85 170 102 170 63 66 120 172 82 Move 32675 | 22 807 689 589 430 1316 667 812 350 3049 933 634 1256 3165 1615 220 332 476 1289 929 1929 2103 1667 1093 1171 1981 2031 1120 Hop . | . . . . . . . . . . . . . . . . . . . . . . . . . . . . Pick Up 115 | 1 5 . 2 1 2 . 2 . 15 3 . 2 6 5 1 4 . . 6 8 4 10 2 10 9 7 10 Fast Attach 184 | 5 4 9 1 2 17 1 . 1 12 6 . 1 13 4 2 6 . 16 8 13 3 8 6 3 12 15 16 Attach 37 | . . . 1 1 1 . . . 5 1 . 1 3 . . 1 . . . . 3 2 2 4 4 2 6 Detach 33 | 1 . . . . 4 . . . 3 2 . . 2 . . . . 3 . 1 2 4 4 2 1 1 3 Swap 357 | . 2 12 1 3 6 2 3 . 33 15 1 15 17 22 5 9 2 11 31 10 30 14 25 5 48 20 15 Drop 252 | 1 10 10 2 5 20 1 3 . 25 9 . 3 18 9 3 8 . 13 14 19 5 14 3 9 17 17 14 Fire 1855 | 4 46 42 . 13 106 40 97 19 67 66 18 79 117 83 15 41 25 89 72 80 109 106 70 103 163 60 125 Melee 11 | . . . . . 1 . . . 10 . . . . . . . . . . . . . . . . . . Ram 5 | . . . . . 1 . . . . . 3 . . . . . . . . . 1 . . . . . . Kick . | . . . . . . . . . . . . . . . . . . . . . . . . . . . . Crush . | . . . . . . . . . . . . . . . . . . . . . . . . . . . . Escape Stasis 337 | . . . . . . 23 . . 12 . . 18 11 25 . . . 63 . 36 20 48 . 80 . . 1 Rewire 148 | . . . . . . . . . . 17 . 8 3 63 . . . 11 . 33 . 13 . . . . . Trap . | . . . . . . . . . . . . . . . . . . . . . . . . . . . . Miscellaneous 742 | . 8 10 . 11 22 8 22 . 17 38 . 33 33 34 20 18 2 78 27 46 41 58 33 47 58 37 41 Route ------- -11/Scrapyard -10/Materials (discovered 4 exits: [*Mat x3] / [*Min]) -10/Mines (discovered 3 exits: [*Mat x2] / *Exi) -10/Exiles (discovered 2 exits: *Min x2) -9/Mines (discovered 2 exits: *Mat x2) -8/Materials (discovered 4 exits: *Fac x3 / Gar) -8/Garrison (discovered 3 exits: *Mat x3) -8/Materials (discovered 3 exits: *Fac x2 / Gar) -8/Garrison (discovered 3 exits: *Fac x3) -7/Factory (discovered 5 exits: *Fac x2 / *Low x2 / Gar) -7/Garrison (discovered 3 exits: *Fac x3) -7/Factory (discovered 2 exits: *Fac / Gar) -7/Garrison (discovered 2 exits: *Fac x2) -6/Factory (discovered 6 exits: *Fac x3 / *Low / *Ext x2) -6/Extension (discovered 2 exits: *Fac / *Cet) -6/Cetus -6/Archives (discovered 3 exits: *Fac / *Hub x2) -6/Hub_04(d) -6/Garrison (discovered 2 exits: *Fac x2) -5/Factory (discovered 3 exits: *Fac / Gar / Gar) -5/Garrison (discovered 3 exits: *Fac x3) -5/Factory (discovered 5 exits: *Fac x2 / *Upp x2 / Gar) -5/Garrison (discovered 3 exits: *Fac x3) -4/Factory (discovered 4 exits: *Res / *Upp x2 / Gar) -4/Garrison (discovered 3 exits: *Res x3) -3/Research (discovered 4 exits: *Res / Arm / *Qua x2) -3/Quarantine (discovered 2 exits: *Res / *Sec) -3/Section 7 History --------- Turn | Location | Event 1 | -11/Scrapyard | Upgraded with Propulsion slot (x1) 1 | -11/Scrapyard | Upgraded with Weapon slot (x1) 1 | -11/Scrapyard | Discovered new exit (range 1) 37 | -11/Scrapyard | Upgraded with Weapon slot (x1) 45 | -11/Scrapyard | Entered Materials 215 | -10/Materials | Discovered new exit (range 8) 311 | -10/Materials | Discovered new exit (range 15) 445 | -10/Materials | Discovered new exit (range 16) 560 | -10/Materials | Build established: Gunner 591 | -10/Materials | Discovered new exit (range 16) 740 | -10/Materials | Reached level 2 901 | -10/Materials | Entered Mines 915 | -10/Mines | Upgraded with Utility slot (x1) 1004 | -10/Mines | Core integrity fell below 50% 1014 | -10/Mines | Joined a pair of Derelicts in attacking an 0b10 outpost 1089 | -10/Mines | Discovered new exit (range 12) 1099 | -10/Mines | Reached level 3 1204 | -10/Mines | Build established: Scavenger-Skirmisher 1332 | -10/Mines | Deemed a non-threat by the Exiles lab entrance 1332 | -10/Mines | Discovered new exit (range 5) 1502 | -10/Mines | Discovered new exit (range 16) 1534 | -10/Mines | Reached level 4 1725 | -10/Mines | Entered Exiles 1738 | -10/Exiles | Discovered new exit (range 15) 1751 | -10/Exiles | Met 8R-AWN 1764 | -10/Exiles | Met EX-HEX 1801 | -10/Exiles | Met EX-DEC 1818 | -10/Exiles | Visited The Gauntlet 1926 | -10/Exiles | Learned location of Zion (-6) 1954 | -10/Exiles | Met EX-BIN 1968 | -10/Exiles | Aligned with FarCom system 1969 | -10/Exiles | Given EX-Vault access code 1992 | -10/Exiles | Opened EX-Vault 2031 | -10/Exiles | Warned to stay clear of 0b10 Research branches 2192 | -10/Exiles | Found AWS/Thermal 2197 | -10/Exiles | Found Gui. Plasma Cannon 2200 | -10/Exiles | Found Chronowheel 2283 | -10/Exiles | Discovered new exit (range 10) 2290 | -10/Exiles | Identified exit to Mines 2292 | -10/Exiles | Stole three prototypes: Gui. Plasma Cannon, Chronowheel, AWS/Thermal 2292 | -10/Exiles | Entered Mines 2506 | -9/Mines | Discovered new exit (range 9) 2601 | -9/Mines | Discovered new exit (range 9) 2630 | -9/Mines | Reached level 5 2669 | -9/Mines | Identified exit to Materials 2763 | -9/Mines | Entered Materials 2764 | -8/Materials | Identified exit to Factory 2765 | -8/Materials | Reached level 6 2850 | -8/Materials | Upgraded with Utility slot (x1) 2979 | -8/Materials | Upgraded with Utility slot (x1) 3022 | -8/Materials | Upgraded with Weapon slot (x1) 3285 | -8/Materials | Upgraded with Propulsion slot (x1) 3363 | -8/Materials | Discovered exit to Factory (range 16) 3578 | -8/Materials | Build established: Scavenger-Assassin 3682 | -8/Materials | Reached level 7 3866 | -8/Materials | Discovered exit to Factory (range 17) 4041 | -8/Materials | Gui. Plasma Cannon suddenly broke down 4168 | -8/Materials | Build established: Scavenger-Scout 4263 | -8/Materials | Garrison activated, responded to threat 4297 | -8/Materials | Reached level 8 4363 | -8/Materials | Search patrols dispatched 4384 | -8/Materials | Identified exit to Garrison 4384 | -8/Materials | Entered Garrison 4450 | -8/Garrison | Triggered checkpoint 4497 | -8/Garrison | Triggered checkpoint 4503 | -8/Garrison | Triggered checkpoint 4505 | -8/Garrison | Reached level 9 4595 | -8/Garrison | Discovered new exit (range 12) 4614 | -8/Garrison | Identified exit to Materials 4614 | -8/Garrison | Attempted to access garrison exit controls, blocked by remote lockdown 4767 | -8/Garrison | Discovered exit to Materials (range 12) 4771 | -8/Garrison | Installed Relay Interface Framework 4816 | -8/Garrison | Upgraded with Propulsion slot (x1) 4882 | -8/Garrison | Expanded RIF knowledge: Hotswap 4882 | -8/Garrison | Reached level 10 4892 | -8/Garrison | Triggered checkpoint 4934 | -8/Garrison | Discovered exit to Materials (range 23) 4934 | -8/Garrison | Discovered exit to Materials (range 25) 4934 | -8/Garrison | Discovered exit to Materials (range 62) 4948 | -8/Garrison | Entered Materials 5235 | -8/Materials | Reached level 11 5297 | -8/Materials | Discovered exit to Factory (range 17) 5426 | -8/Materials | Identified exit to Garrison 5570 | -8/Materials | Core integrity fell below 50% 5702 | -8/Materials | Discovered exit to Factory (range 12) 5716 | -8/Materials | Reached level 12 5744 | -8/Materials | Entered Garrison 5791 | -8/Garrison | Triggered checkpoint 5801 | -8/Garrison | Learned Factory security intel 5817 | -8/Garrison | Discovered exit to Factory (range 82) 5817 | -8/Garrison | Discovered exit to Factory (range 36) 5817 | -8/Garrison | Discovered exit to Factory (range 78) 5845 | -8/Garrison | Upgraded with Power slot (x1) 5903 | -8/Garrison | Triggered checkpoint 6010 | -8/Garrison | Expanded RIF knowledge: Threat Obfuscation 6015 | -8/Garrison | Entered Factory 6017 | -7/Factory | FarCom data flow suspended 6017 | -7/Factory | Reached level 13 6021 | -7/Factory | Upgraded with Utility slot (x1) 6083 | -7/Factory | Core integrity fell below 50% 6125 | -7/Factory | Build established: Hacker-Scout 6148 | -7/Factory | Discovered new exit (range 17) 6172 | -7/Factory | Identified exit to Garrison 6252 | -7/Factory | Discovered new exit (range 14) 6283 | -7/Factory | Identified exit to Lower Caves 6307 | -7/Factory | Upgraded with Propulsion slot (x1) 6405 | -7/Factory | Gui. Plasma Cannon suddenly broke down 6600 | -7/Factory | Gui. Plasma Cannon suddenly broke down 6696 | -7/Factory | Reached level 14 6802 | -7/Factory | Gui. Plasma Cannon suddenly broke down 7121 | -7/Factory | Gui. Plasma Cannon suddenly broke down 7227 | -7/Factory | Repaired Airjet 7444 | -7/Factory | Discovered new exit (range 15) 7450 | -7/Factory | Identified exit to Factory 7773 | -7/Factory | Entered Garrison 7775 | -7/Garrison | Reached level 15 7784 | -7/Garrison | AWS/Thermal suddenly broke down 7988 | -7/Garrison | Phase Generator disabled 8143 | -7/Garrison | Triggered checkpoint 8154 | -7/Garrison | Triggered checkpoint 8207 | -7/Garrison | Discovered new exit (range 11) 8235 | -7/Garrison | Identified exit to Factory 8257 | -7/Garrison | Found Prototype Device 8257 | -7/Garrison | Identified Active Sensor Suite 8291 | -7/Garrison | Spotted B-75 Beast 8307 | -7/Garrison | Discovered exit to Factory (range 27) 8307 | -7/Garrison | Discovered exit to Factory (range 28) 8307 | -7/Garrison | Discovered exit to Factory (range 69) 8310 | -7/Garrison | Heavy support dispatched to Factory 8326 | -7/Garrison | Triggered checkpoint 8357 | -7/Garrison | AWS/Thermal suddenly broke down 8396 | -7/Garrison | Reached level 16 8406 | -7/Garrison | Gui. Plasma Cannon suddenly broke down 8415 | -7/Garrison | Expanded RIF knowledge: Zone Cloak 8419 | -7/Garrison | Destroyed 14 combat bots 8442 | -7/Garrison | Entered Factory 8460 | -7/Factory | Discovered exit to Factory (range 4) 8614 | -7/Factory | Identified exit to Garrison 8827 | -7/Factory | Entered Garrison 9167 | -7/Garrison | Gui. Plasma Cannon suddenly broke down 9338 | -7/Garrison | Discovered exit to Factory (range 14) 9405 | -7/Garrison | Expanded RIF knowledge: Coupler Efficiency 9429 | -7/Garrison | Gui. Plasma Cannon suddenly broke down 9656 | -7/Garrison | Reached level 17 9685 | -7/Garrison | Discovered exit to Factory (range 11) 9757 | -7/Garrison | Upgraded with Weapon slot (x1) 9769 | -7/Garrison | Entered Factory 9824 | -6/Factory | Gui. Plasma Cannon suddenly broke down 9838 | -6/Factory | Discovered new exit (range 15) 9856 | -6/Factory | Identified exit to Factory 9944 | -6/Factory | Discovered exit to Factory (range 12) 10119 | -6/Factory | First assault squad dispatched 10139 | -6/Factory | Found Prototype Launcher 10139 | -6/Factory | Identified Rocket Array 10209 | -6/Factory | Discovered new exit (range 17) 10220 | -6/Factory | Reached level 18 10243 | -6/Factory | Identified exit to Lower Caves 10359 | -6/Factory | Gui. Plasma Cannon suddenly broke down 10433 | -6/Factory | Discovered new exit (range 6) 10434 | -6/Factory | Identified exit to Extension 10561 | -6/Factory | Discovered exit to Factory (range 5) 10677 | -6/Factory | Upgraded with Utility slot (x1) 10797 | -6/Factory | Discovered exit to Extension (range 13) 10923 | -6/Factory | AWS/Thermal suddenly broke down 11169 | -6/Factory | Search patrols dispatched 11238 | -6/Factory | AWS/Thermal suddenly broke down 11288 | -6/Factory | Spotted B-75 Beast 11289 | -6/Factory | Local machine network offline 11541 | -6/Factory | Entered Extension 11572 | -6/Extension | Spotted B-75 Beast 11727 | -6/Extension | Reached level 19 11752 | -6/Extension | Gui. Plasma Cannon suddenly broke down 11848 | -6/Extension | AWS/Thermal suddenly broke down 11936 | -6/Extension | Rescued a captive Derelict 11950 | -6/Extension | Rescued a captive Derelict 11954 | -6/Extension | Rescued a captive Derelict 12032 | -6/Extension | Rescued a captive Derelict 12178 | -6/Extension | Gui. Plasma Cannon suddenly broke down 12195 | -6/Extension | Destroyed B-75 Beast 12232 | -6/Extension | Spotted B-75 Beast 12260 | -6/Extension | AWS/Thermal suddenly broke down 12269 | -6/Extension | Destroyed B-75 Beast 12330 | -6/Extension | Discovered new exit (range 17) 12331 | -6/Extension | Discovered exit to Factory (range 17) 12415 | -6/Extension | Gui. Plasma Cannon suddenly broke down 12567 | -6/Extension | Core integrity fell below 50% 12696 | -6/Extension | Gui. Plasma Cannon suddenly broke down 12704 | -6/Extension | AWS/Thermal suddenly broke down 12832 | -6/Extension | Identified exit to Cetus 12853 | -6/Extension | Entered Cetus 12853 | -6/Cetus | Accompanied by 7 allies 12870 | -6/Cetus | Spotted Cetus Guard 12870 | -6/Cetus | Spotted Cetus Guard 12887 | -6/Cetus | Gui. Plasma Cannon suddenly broke down 12887 | -6/Cetus | Spotted Cetus Guard 12889 | -6/Cetus | Spotted Cetus Guard 12891 | -6/Cetus | AWS/Thermal suddenly broke down 12896 | -6/Cetus | Destroyed Cetus Guard 12903 | -6/Cetus | Allies destroyed Cetus Guard 12909 | -6/Cetus | Destroyed Cetus Guard 12913 | -6/Cetus | Allies destroyed Cetus Guard 12950 | -6/Cetus | Lost 5 allies 13026 | -6/Cetus | Discovered new exit (range 18) 13034 | -6/Cetus | Identified exit to Archives 13035 | -6/Cetus | Entered Archives 13037 | -6/Archives | Reached level 20 13040 | -6/Archives | Gui. Plasma Cannon suddenly broke down 13044 | -6/Archives | AWS/Thermal suddenly broke down 13218 | -6/Archives | Gui. Plasma Cannon suddenly broke down 13222 | -6/Archives | AWS/Thermal suddenly broke down 13269 | -6/Archives | Discovered new exit (range 17) 13272 | -6/Archives | Discovered new exit (range 18) 13304 | -6/Archives | Upgraded with Weapon slot (x1) 13384 | -6/Archives | Discovered exit to Factory (range 13) 13403 | -6/Archives | Identified exit to Hub_04(d) 13470 | -6/Archives | Entered Hub_04(d) 13779 | -6/Hub_04(d) | Spotted B-75 Beast 13782 | -6/Hub_04(d) | Identified exit to Garrison 13782 | -6/Hub_04(d) | Entered Garrison 13788 | -6/Garrison | Spotted B-86 Titan 13789 | -6/Garrison | Spotted B-75 Beast 13821 | -6/Garrison | Spotted B-75 Beast 13831 | -6/Garrison | Learned Factory security intel 13842 | -6/Garrison | Expanded RIF knowledge: Robot Detection 14047 | -6/Garrison | Spotted Executioner 14086 | -6/Garrison | Destroyed Executioner 14094 | -6/Garrison | Found Prototype Device 14094 | -6/Garrison | Identified Adv. Kinecellerator 14097 | -6/Garrison | Found Prototype Processor 14097 | -6/Garrison | Identified Exp. Targeting Computer 14145 | -6/Garrison | Spotted Executioner 14182 | -6/Garrison | Destroyed Executioner 14221 | -6/Garrison | Found Prototype Processor 14221 | -6/Garrison | Identified Exp. Core Analyzer 14233 | -6/Garrison | Destroyed B-75 Beast 14265 | -6/Garrison | Spotted B-75 Beast 14310 | -6/Garrison | Destroyed B-75 Beast 14346 | -6/Garrison | Destroyed B-86 Titan 14372 | -6/Garrison | Rewired B-75 Beast 14380 | -6/Garrison | Rewired B-90 Cyclops 14465 | -6/Garrison | Allies destroyed B-75 Beast 14530 | -6/Garrison | Build established: Scavenger-Scout 14785 | -6/Garrison | Reached level 21 14877 | -6/Garrison | Discovered exit to Factory (range 11) 14891 | -6/Garrison | Rewired Executioner 14898 | -6/Garrison | Rewired Executioner 15055 | -6/Garrison | Discovered exit to Factory (range 10) 15137 | -6/Garrison | Entered Factory 15137 | -5/Factory | Accompanied by 4 allies 15248 | -5/Factory | Local machine network offline 15343 | -5/Factory | Identified exit to Garrison 15439 | -5/Factory | Destroyed Executioner 15491 | -5/Factory | Destroyed Executioner 15529 | -5/Factory | Found Adv. Kinecellerator 15685 | -5/Factory | Discovered new exit (range 8) 15688 | -5/Factory | Identified exit to Factory 15768 | -5/Factory | Reached level 22 15833 | -5/Factory | Garrison activated, responded to threat 15898 | -5/Factory | Destroyed 8 combat bots 15935 | -5/Factory | Identified exit to Garrison 15935 | -5/Factory | Entered Garrison 15960 | -5/Garrison | Phase Generator disabled 16330 | -5/Garrison | Spotted B-75 Beast 16340 | -5/Garrison | Destroyed B-75 Beast 16546 | -5/Garrison | Reached level 23 16817 | -5/Garrison | Found embedded Infiltrators 16931 | -5/Garrison | Expanded RIF knowledge: Code Merge 16969 | -5/Garrison | Discovered new exit (range 11) 16973 | -5/Garrison | Identified exit to Factory 17029 | -5/Garrison | Discovered exit to Factory (range 17) 17048 | -5/Garrison | Garrison Relay disabled 17119 | -5/Garrison | Discovered exit to Factory (range 58) 17119 | -5/Garrison | Discovered exit to Factory (range 47) 17119 | -5/Garrison | Discovered exit to Factory (range 13) 17172 | -5/Garrison | Spotted B-86 Titan 17185 | -5/Garrison | Expanded RIF knowledge: Crosswire 17200 | -5/Garrison | Destroyed B-86 Titan 17223 | -5/Garrison | Found Relay Coupler [Proto] 17237 | -5/Garrison | Garrison Relay disabled 17289 | -5/Garrison | Garrison Relay disabled 17358 | -5/Garrison | Garrison Relay disabled 17360 | -5/Garrison | Upgraded with Utility slot (x1) 17396 | -5/Garrison | Garrison Relay disabled 17423 | -5/Garrison | Entered Factory 17423 | -5/Factory | Accompanied by 5 allies 17465 | -5/Factory | Garrison activated, responded to threat 17736 | -5/Factory | Reached level 24 17767 | -5/Factory | Discovered new exit (range 5) 17769 | -5/Factory | Identified exit to Upper Caves 17832 | -5/Factory | Destroyed B-75 Beast 17908 | -5/Factory | Discovered exit to Factory (range 9) 18023 | -5/Factory | First assault squad dispatched 18279 | -5/Factory | Discovered exit to Factory (range 18) 18428 | -5/Factory | Discovered exit to Upper Caves (range 12) 18473 | -5/Factory | Core integrity fell below 50% 18742 | -5/Factory | Central database locked down 18870 | -5/Factory | Identified exit to Garrison 18870 | -5/Factory | Entered Garrison 18899 | -5/Garrison | Spotted Striker 18915 | -5/Garrison | Destroyed Striker 18934 | -5/Garrison | Rewired Striker 18937 | -5/Garrison | Rewired Executioner 18974 | -5/Garrison | Triggered checkpoint 19046 | -5/Garrison | Garrison Relay disabled 19124 | -5/Garrison | Spotted B-75 Beast 19128 | -5/Garrison | Destroyed 7 combat bots 19132 | -5/Garrison | Destroyed B-75 Beast 19225 | -5/Garrison | Destroyed B-75 Beast 19283 | -5/Garrison | Destroyed B-75 Beast 19473 | -5/Garrison | Destroyed 8 combat bots 19584 | -5/Garrison | Destroyed 7 combat bots 19712 | -5/Garrison | Expanded RIF knowledge: Threat Obfuscation 19717 | -5/Garrison | Garrison Relay disabled 19739 | -5/Garrison | Discovered exit to Factory (range 8) 19822 | -5/Garrison | Reached level 25 19902 | -5/Garrison | Garrison Relay disabled 19948 | -5/Garrison | Discovered exit to Factory (range 16) 20023 | -5/Garrison | Garrison Relay disabled 20150 | -5/Garrison | Learned Factory security intel 20152 | -5/Garrison | Discovered exit to Factory (range 12) 20214 | -5/Garrison | Upgraded with Utility slot (x1) 20297 | -5/Garrison | Entered Factory 20376 | -4/Factory | Found Prototype Processor 20376 | -4/Factory | Identified Exp. Melee Analysis Suite 20505 | -4/Factory | Discovered new exit (range 16) 20512 | -4/Factory | Identified exit to Upper Caves 20547 | -4/Factory | First assault squad dispatched 20561 | -4/Factory | Discovered exit to Upper Caves (range 24) 20589 | -4/Factory | Spotted B-86 Titan 20660 | -4/Factory | Destroyed B-86 Titan 20661 | -4/Factory | Core integrity fell below 50% 20735 | -4/Factory | Destroyed 7 combat bots 20841 | -4/Factory | Discovered new exit (range 10) 20845 | -4/Factory | Identified exit to Research 21024 | -4/Factory | Found Prototype Processor 21024 | -4/Factory | Identified Exp. Signal Interpreter 21039 | -4/Factory | Found Exp. Signal Interpreter 21104 | -4/Factory | Identified exit to Garrison 21110 | -4/Factory | Entered Garrison 21146 | -4/Garrison | Triggered checkpoint 21178 | -4/Garrison | Learned Research security intel 21290 | -4/Garrison | Reached level 26 21345 | -4/Garrison | Found embedded Infiltrators 21489 | -4/Garrison | Destroyed 9 combat bots 21584 | -4/Garrison | Destroyed 7 combat bots 21735 | -4/Garrison | Discovered exit to Research (range 13) 21811 | -4/Garrison | Expanded RIF knowledge: Threat Obfuscation 21814 | -4/Garrison | Discovered exit to Research (range 12) 21890 | -4/Garrison | Discovered exit to Research (range 10) 21925 | -4/Garrison | Garrison Relay disabled 22103 | -4/Garrison | Garrison Relay disabled 22139 | -4/Garrison | Entered Research 22141 | -3/Research | Reached level 27 22224 | -3/Research | Identified exit to Armory 22224 | -3/Research | Identified exit to Quarantine 22451 | -3/Research | Found Prototype Device 22451 | -3/Research | Identified Exp. Thermal Shield 22455 | -3/Research | Found Prototype Processor 22455 | -3/Research | Identified Spectral Analyzer 22523 | -3/Research | Spotted B-86 Titan 22540 | -3/Research | Destroyed B-86 Titan 22656 | -3/Research | Core integrity fell below 50% 23230 | -3/Research | Destroyed 8 combat bots 23337 | -3/Research | Discovered new exit (range 19) 23407 | -3/Research | Identified exit to Research 23526 | -3/Research | Reached level 28 23562 | -3/Research | Repaired Centrium Medium Armor Plating 23681 | -3/Research | Entered Quarantine 23748 | -3/Quarantine | Found Prototype Protection 23748 | -3/Quarantine | Identified Centrium Heavy Armor Plating 23774 | -3/Quarantine | Build established: Botlord-Scout 23803 | -3/Quarantine | Found Alien Energy Cannon 23803 | -3/Quarantine | Identified Core Cannon 23876 | -3/Quarantine | Found Alien Artifact 23878 | -3/Quarantine | Identified Subatomic Replicator 23886 | -3/Quarantine | Discovered exit to Research (range 11) 23994 | -3/Quarantine | Activated Chronowheel 23994 | -3/Quarantine | Spacetime reconverged on an earlier point 23995 | -3/Quarantine | Spotted Fortress 23997 | -3/Quarantine | Assimilated Fortress with formatsys_high 24044 | -3/Quarantine | Discovered new exit (range 6) 24045 | -3/Quarantine | Identified exit to Section 7 24233 | -3/Quarantine | Upgraded with Weapon slot (x1) 24236 | -3/Quarantine | Found Alien Artifact 24491 | -3/Quarantine | Found Unknown Device 24491 | -3/Quarantine | Identified Launcher Loader 24589 | -3/Quarantine | Met incapacitated Sigix Warrior 24589 | -3/Quarantine | Lockdown squad dispatched 24590 | -3/Quarantine | Acquired the access code to the Sigix quarantine chamber 24995 | -3/Quarantine | Build established: Botlord-Executioner 25000 | -3/Quarantine | Entered Section 7 25000 | -3/Section 7 | Accompanied by 1 ally 25002 | -3/Section 7 | Reached level 29 25361 | -3/Section 7 | Spotted Executioner 25361 | -3/Section 7 | Spotted Executioner 25378 | -3/Section 7 | Destroyed Executioner 25427 | -3/Section 7 | Core integrity fell below 20% 25435 | -3/Section 7 | Destroyed Executioner 25489 | -3/Section 7 | Destroyed 10 combat bots 25544 | -3/Section 7 | Spotted Striker 25555 | -3/Section 7 | Spotted Executioner 25569 | -3/Section 7 | Identified Core Reset Matrix 25569 | -3/Section 7 | Used Core Reset Matrix 25573 | -3/Section 7 | Sensed 18 artifacts in vicinity 25580 | -3/Section 7 | Integrated with Sigix Exoskeleton 25580 | -3/Section 7 | Reached level 30 25613 | -3/Section 7 | Upgraded with Power slot (x1) 25613 | -3/Section 7 | Found Matter Drive 25629 | -3/Section 7 | Found Transdimensional Reconstructor 25631 | -3/Section 7 | Found Transdimensional Reconstructor 25654 | -3/Section 7 | Found Exp. Core Analyzer 25658 | -3/Section 7 | Found Exp. Core Analyzer 25661 | -3/Section 7 | Upgraded with Utility slot (x1) 25681 | -3/Section 7 | Spotted Striker 25695 | -3/Section 7 | Warped through subspace 25696 | -3/Section 7 | Warped through subspace 25696 | -3/Section 7 | Spotted B-99 Colossus 25723 | -3/Section 7 | Found Integrated Reactor 25723 | -3/Section 7 | Installed Integrated Reactor, increased core energy generation (+10) 25751 | -3/Section 7 | Found LRC Inertial Stabilizer 25751 | -3/Section 7 | Installed LRC Inertial Stabilizer, increased mass support (+10) 25753 | -3/Section 7 | Found LRC Matter Compressor 25753 | -3/Section 7 | Installed LRC Matter Compressor, increased matter storage capacity (+125) 25834 | -3/Section 7 | Destroyed B-99 Colossus 25940 | -3/Section 7 | Spotted Investigator 25944 | -3/Section 7 | Scanned by Researcher 25944 | -3/Section 7 | Destroyed Investigator 25945 | -3/Section 7 | Intercept squad dispatched 25948 | -3/Section 7 | Destroyed 19 combat bots 25957 | -3/Section 7 | Spotted Tracker 25977 | -3/Section 7 | Destroyed Tracker 25988 | -3/Section 7 | Destroyed by G-67 Veteran with Plasma Rifle Last Messages --------------- 25972_ Quantum Shear penetrates Tracker. 25972_ Quantum Shear penetrates Reinforced Barrier. 25972_ C-30 ARC bursts open, deploying its payload. 25972_ G-73 Enforcer unfolds itself. 25972_ G-67 Veteran unfolds itself. 25972_ L-61 Swordsman unfolds itself. 25972_ B-74 Champion unfolds itself. 25972_ M-36 Artificer unfolds itself. 25973_ Door Terminal disabled. 25974_ Quantum Shear penetrates Reinforced Barrier. 25977_ Quantum Shear penetrates Tracker. 25977_ Tracker destroyed. 25978_ M-36 Artificer repairs G-73 Enforcer. 25979_ Quantum Shear penetrates L-61 Swordsman. 25982_ L-61 Swordsman destroyed. 25982_ Switching to secondary target: B-74 Champion. 25982_ Quantum Shear penetrates B-74 Champion. 25987_ Quantum Shear penetrates M-36 Artificer. 25987_ M-36 Artificer destroyed. 25987_ Destroyed Adv. Heat Sink. Map ----- +----------------------------------------------------+ | ######################### ################????#?? | | ######################### ####"""""" ""?????#? | | ######################### ####"""""" """????#? | | ############# #### ###### ####"""""" ????? | | ######################### #### " """""##?? | | ##############!=%*!!%%!! """""###? | | ##############%*%=[!!=! """""#### | | ##############=%###############" """""#### | | ##############[*###############"" "#### | | ########## ![#!|###############" " "#### | | #######" """"[!= """###########"""""""" """ "#### | | #######" |*=/=="""################### # ####### | | #######" =!*%="""################### ######### | | #######""" " =!!"""################### ######### | | #######""""" [ """###################l ######### | | #######""""" """################### ######### | | #######""""" """################### ######### | | #######" ""###"""""""""" ""### ######### | | #######""""" """###""@"""" ### ######### | | #######""""" """"# #"" """" ###C ######### | | ############## #######"" """"%[*![ ### ######### | | ##############l*####### " """![==%%% bg ######### | | ##############[!####### ==%!*!g]%g e% ######### | | ##############!g##### # !/l=%p*!g ############## | | ##############==#######%*=b//!= "!""############## | | ########## #!!%!*[=*[=/X=%=%""" ""############## | | ########### #=|%[*=!%/=*!%!*"""" ""############## | | ####################### *=/!"""" ""############## | | ############## ######## """"""############## | | ###########################";;#################### | | ###################### #### ;##################### | | ########################### ###################### | | ########################## "" ################## | | ##########################" ################## | | ################################################## | | ?################################################# | | | | | | | | | | | | | | | | | | | | | | | | | | | | | +----------------------------------------------------+ Best States ------------- Heat Dissipation 193 Energy Generation 68 Energy Capacity 370 Matter Stores 370 Matter Capacity 475 Sight Range 22 Robot Scan Range 28 Terrain Scan Range 24 Terrain Scan Density 210 Jamming Range 16 Armor Coverage 600 Resistance: KI 50 Resistance: TH 50 Resistance: EX 50 Resistance: EM 50 Resistance: I 50 Resistance: S 50 Resistance: P 50 Evasion (%) 71 Targeting Accuracy 12 Target Analysis 8 Core Analysis 12 Armor Integrity Analysis 40 Recoil Reduction 6 Particle Charging 15 Kinecelleration 50 Salvage Targeting 2 Offensive Hacking 25 Defensive Hacking 15 Relay Coupler Types 7 Relay Coupler Value 239 Item Schematics ----------------- None Robot Schematics ------------------ None Fabricated ------------ Nothing Alien Tech Used ----------------- Core Cannon Subatomic Replicator Core Reset Matrix Sigix Exoskeleton Sigix Sheargun Matter Drive Transdimensional Reconstructor Integrated Reactor LRC Inertial Stabilizer LRC Matter Compressor Achievements -------------- None Challenges ------------ None RPGLIKE | -11 -10 -10 -10 -9 -8 -8 -8 -8 -7 -7 -7 -7 -6 -6 -6 -6 -6 -6 -5 -5 -5 -5 -4 -4 -3 -3 -3 --------- Run | Yrd Mat Min Exi Min Mat Gar Mat Gar Fac Gar Fac Gar Fac Ext Cet Arc Hub Gar Fac Gar Fac Gar Fac Gar Res Qua Sec Levels Raised 29 | . 1 2 . 1 3 2 2 . 2 2 . 1 1 1 . 1 . 1 1 1 1 1 . 1 2 . 2 XP Earned 47848 | 3000 2055 2600 350 1095 4605 3200 2646 885 3169 2014 82 1307 2453 1424 466 264 352 1110 1760 2242 1027 980 1029 996 2509 1286 2942 XP Spent 46445 | 2050 900 600 1750 160 5580 2400 . 1900 4965 1250 . 1400 3500 . 1000 1700 2060 . 200 2000 . 5550 . . . 2000 5480 Upgrades 89 | 4 3 3 2 2 15 4 . 3 11 1 . 1 4 . 4 1 7 . 1 1 . 3 . . . 1 18 Power Slot 2 | . . . . . . . . 1 . . . . . . . . . . . . . . . . . . 1 Propulsion Slot 4 | 1 . . . . 1 1 . . 1 . . . . . . . . . . . . . . . . . . Utility Slot 8 | . . 1 . . 2 . . . 1 . . . 1 . . . . . . 1 . 1 . . . . 1 Weapon Slot 6 | 2 . . . . 1 . . . . . . 1 . . . 1 . . . . . . . . . 1 . Core Integrity 19 | . . . . . . . . . 3 . . . . . . . . . . . . . . . . . 16 Heat Dissipation 14 | . . 1 . 2 2 . . . 3 . . . . . . . 6 . . . . . . . . . . Energy Generation 2 | . . . . . 1 . . . 1 . . . . . . . . . . . . . . . . . . Matter Storage 1 | . . . . . . . . . . . . . . . . . . . 1 . . . . . . . . Mass Support 2 | . . . . . 2 . . . . . . . . . . . . . . . . . . . . . . Inventory Capacity 7 | 1 1 . 2 . . . . . . 1 . . . . . . . . . . . 2 . . . . . Sight Range 2 | . . . . . 1 . . . . . . . 1 . . . . . . . . . . . . . . Sensor Range 4 | . . . . . 4 . . . . . . . . . . . . . . . . . . . . . . Terrain Scan Density 2 | . . 1 . . 1 . . . . . . . . . . . . . . . . . . . . . . Ranged Accuracy 2 | . . . . . . 1 . . . . . . . . . . 1 . . . . . . . . . . Hack Attack % 5 | . 1 . . . . 1 . 1 1 . . . 1 . . . . . . . . . . . . . . Hack Defense % 3 | . 1 . . . . 1 . 1 . . . . . . . . . . . . . . . . . . . KI Resistance % 2 | . . . . . . . . . . . . . . . 2 . . . . . . . . . . . . TH Resistance % 2 | . . . . . . . . . . . . . . . 2 . . . . . . . . . . . . TH Damage % 2 | . . . . . . . . . 1 . . . 1 . . . . . . . . . . . . . . Protomatter Created 10221 | . 115 113 . 16 241 137 160 39 173 333 10 671 185 631 155 135 54 760 379 952 644 1023 494 522 596 316 1367 Integrity Restored 14975 | . 135 210 . 246 384 162 462 . 363 791 . 578 564 745 453 397 30 1696 557 601 868 1158 711 953 1296 729 886 Core 11548 | . 91 210 . 246 330 162 462 . 363 683 . 398 441 720 453 221 30 1134 155 401 825 649 630 580 1255 240 869 Parts 3427 | . 44 . . . 54 . . . . 108 . 180 123 25 . 176 . 562 402 200 43 509 81 373 41 489 17 Protomatter Decayed 4986 | . 36 . . . 108 38 57 39 52 73 10 441 53 426 62 . 44 208 138 542 878 262 254 145 259 138 723 Game ------ Seed ProtonTransportSuperbattery Manual? 0 Play Time 15:27:17 Cumulative 552.3 hours Start 2024.08.28 @ 22:56:33 End 2024.08.31 @ 18:26:59 Sessions 18 Manual Loads 0 Difficulty Rogue Special Mode Winter2019/RPGLIKE Game No. 129 Rogue 89 Adventurer 4 Explorer 36 Win Type - Total 38 Types 18/6/4/2/2/3/2/0/1 Lore% 71 Gallery% 85 Achievement% 89 Wizard Run 0 Options --------- Layout 0 ASCII 0 Keyboard 1 Movement Vi Keybinds 0 Fullscreen 1 Font 18/X11 Map View 112x50 Zoom Use 0% Tactical HUD 1 Map Filters NONE Filters NONE Steam 1 RUN: 9082bdd4-db65-43d0-9c6a-ae712c4f7607